Cogmind - Beta 15 @@@ ROGUE MODE // 2025.06.17 @ 20:36:36 Player: saltine Result: Escaped! Performance ------------- Evolutions (9) 4500 Regions Visited (31) 6200 Robots Destroyed (332) 1660 Value Destroyed (23829) 23829 Prototype IDs (65) 1300 Alien Tech Used (3) 600 Bonus (22870) 22870 TOTAL SCORE: 60959 Bonus ------- High Alert Combat Kills 3169 Follower Combat Kills 8201 Entered Garrisons 2200 Used RIF Installer 6000 Aligned with FarCom 300 Win 3000 Cogmind --------- Core Integrity 944/1600 Matter 390/400 Energy 245/260 System Corruption 47% Temperature Cool (10) Movement Walking (114) Location To Epsilon Eridani Parts ------- > --- POWER (2) -------- Light Antimatter Reactor Light Quantum Reactor > --- PROPULSION (6) --- Myomer Leg Myomer Leg Biometal Leg Biometal Leg Biometal Leg (fused) Compact Wheel > --- UTILITY (13) ----- Advanced Heat Sink Advanced Heat Sink Medium Matter Pod Experimental Core Analyzer Relay Coupler [C] (39) Relay Coupler [C] (53) Relay Coupler [C] (45) Relay Coupler [C] (43) Relay Coupler [Sentry] (41) Relay Coupler [Hunter] (9) Relay Coupler [Proto] (16) Relay Coupler [Proto] (16) > --- WEAPON (4) ------- Heavy Mass Driver Heavy Mass Driver > --- INVENTORY (5) ---- Advanced Heat Sink Advanced Heat Sink Fusion Bomb Launcher Advanced Remote Datajack Peak State ------------ > --- POWER ------------ Light Quantum Reactor Improved Quantum Reactor > --- PROPULSION ------- Armored Heavy Treads Advanced Heavy Treads Biometal Heavy Treads > --- UTILITY ---------- Advanced Cooling System Cargo Storage Unit Experimental Signal Interpreter Modified TNC Quantum Capacitor Centrium Medium Armor Plating Relay Coupler [C] Relay Coupler [C] Relay Coupler [C] Relay Coupler [C] Relay Coupler [Hunter] > --- WEAPON ----------- Enhanced Nova Cannon Advanced Remote Datajack Advanced Remote Datajack > --- INVENTORY -------- Quantum Reactor Improved Heavy Treads Advanced Heavy Siege Treads Experimental Sensor Array Experimental Core Analyzer Centrium Medium Armor Plating Graphene Brace Advanced Force Field Relay Coupler [C] Relay Coupler [C] Relay Coupler [Sentry] Relay Coupler [Sentry] Relay Coupler [Hunter] Relay Coupler [Proto] Relay Coupler [Proto] Relay Coupler [Proto] Long-range Tractor Beam Chronowheel Transdimensional Reconstructor Subatomic Replicator Compact HERF Cannon Heavy Mass Driver Heavy Mass Driver Gamma Bomb Array Fusion Bomb Launcher Advanced Remote Datajack [Rating: 200] Favorites ----------- Power Light Quantum Reactor Engine Deuterium Engine Power Core Light Nuclear Core Reactor Light Quantum Reactor Propulsion Advanced Treads Treads Advanced Treads Leg Aluminum Leg Wheel Armored Huge Wheel Utility Relay Coupler [C] Device Improved Cooling System Storage Huge Storage Unit Processor Advanced Signal Interpreter Hackware Relay Coupler [C] Protection Hardened Heavy Armor Plating Weapon Heavy Particle Cannon Energy Gun Medium Laser Energy Cannon Heavy Particle Cannon Ballistic Gun Assault Rifle Ballistic Cannon Heavy Mass Driver Launcher Heavy Missile Launcher Special Weapon Advanced Remote Datajack Impact Weapon Power Maul Slashing Weapon Great Axe Special Melee Weapon Datajack Build | -11 -10 -10 -10 -9 -8 -8 -8 -8 -7 -7 -7 -7 -7 -7 -6 -6 -6 -6 -5 -5 -4 -4 -4 -4 -3 -3 -2 -2 -1 -1 -1 ------- Run | Yrd Mat Min Exi Min Mat Gar Mat Gar Fac Was Fac Gar Fac Gar Fac Gar Fac Gar Fac Gar Fac Gar Fac Gar Res Qua Res Gar Acc Gar Acc Slots Evolved 18 | . . . . . 4 . . . 2 . . . . . 2 . . . 2 . 2 . . . 2 . 2 . 2 . . Power 1 | . . . . . . . . . . . . . . . . . . . . . 1 . . . . . . . . . . Propulsion 4 | . . . . . 1 . . . 1 . . . . . . . . . 2 . . . . . . . . . . . . Utility 11 | . . . . . 3 . . . 1 . . . . . 2 . . . . . 1 . . . 2 . 2 . . . . Weapon 2 | . . . . . . . . . . . . . . . . . . . . . . . . . . . . . 2 . . Parts Attached 276 | 1 8 13 1 3 18 7 9 7 6 7 1 13 5 9 1 9 . 12 2 8 5 12 2 14 19 22 . 8 3 16 35 Power 35 | . 2 2 . 1 2 . 1 . 1 2 . 1 . 1 . . . 2 . 1 1 . . 4 1 5 . 1 . 1 6 Engine 5 | . 2 1 . . . . 1 . 1 . . . . . . . . . . . . . . . . . . . . . . Core 5 | . . 1 . 1 2 . . . . . . . . . . . . 1 . . . . . . . . . . . . . Reactor 25 | . . . . . . . . . . 2 . 1 . 1 . . . 1 . 1 1 . . 4 1 5 . 1 . 1 6 Propulsion 42 | . 1 4 . . 5 1 4 . 1 1 1 3 . 3 . 2 . 1 1 1 . 1 . . 2 2 . . . 2 6 Treads 32 | . . 2 . . 5 1 4 . 1 1 1 2 . 3 . 2 . 1 1 1 . 1 . . 2 2 . . . 2 . Leg 8 | . 1 2 . . . . . . . . . . . . . . . . . . . . . . . . . . . . 5 Wheel 2 | . . . . . . . . . . . . 1 . . . . . . . . . . . . . . . . . . 1 Hover . | . . . . . . . . . . . . . . . . . . . . . . . . . . . . . . . . Flight . | . . . . . . . . . . . . . . . . . . . . . . . . . . . . . . . . Utility 140 | . 2 1 . 2 5 2 3 5 4 2 . 7 4 2 1 6 . 6 1 3 3 10 1 10 11 12 . 6 3 11 17 Device 30 | . 1 . . 1 2 1 1 . 1 2 . 1 1 . . 1 . 2 . . . 3 . 2 3 4 . . . . 4 Storage 5 | . 1 . . 1 . . . . . . . . . . . . . 1 . . . . . . . 1 . . . . 1 Processor 7 | . . . . . . . . . 1 . . . . . 1 . . . . . . . . . 2 1 . . 1 . 1 Hackware 73 | . . . . . . . 1 4 2 . . 3 2 2 . 5 . 1 1 2 3 5 . 8 4 1 . 6 2 10 11 Protection 25 | . . 1 . . 3 1 1 1 . . . 3 1 . . . . 2 . 1 . 2 1 . 2 5 . . . 1 . Artifact . | . . . . . . . . . . . . . . . . . . . . . . . . . . . . . . . . Weapon 59 | 1 3 6 1 . 6 4 1 2 . 2 . 2 1 3 . 1 . 3 . 3 1 1 1 . 5 3 . 1 . 2 6 Energy Gun 5 | . . 2 . . 2 . . . . . . . . . . . . . . . . . . . . . . . . . 1 Energy Cannon 11 | . . . . . 2 . 1 1 . 1 . . . . . 1 . 1 . 1 1 . . . 2 . . . . . . Ballistic Gun 7 | 1 2 1 . . 1 . . . . . . . . . . . . 1 . . . . . . . . . . . . 1 Ballistic Cannon 9 | . . . . . . . . . . 1 . 1 . 2 . . . . . 1 . . . . . 2 . . . . 2 Launcher 9 | . 1 3 . . . 3 . . . . . . . 1 . . . . . . . . . . 1 . . . . . . Special Weapon 15 | . . . . . . 1 . 1 . . . . 1 . . . . 1 . 1 . 1 1 . 2 1 . 1 . 2 2 Impact Weapon 1 | . . . . . 1 . . . . . . . . . . . . . . . . . . . . . . . . . . Slashing Weapon 1 | . . . . . . . . . . . . 1 . . . . . . . . . . . . . . . . . . . Piercing Weapon . | . . . . . . . . . . . . . . . . . . . . . . . . . . . . . . . . Special Melee Weapon 1 | . . . 1 . . . . . . . . . . . . . . . . . . . . . . . . . . . . Unidentified Prototypes 14 | . . . . . 2 . . . . 2 . . . . . . . . . . . . . . . 7 . . . . 3 Corrupted Parts 10 | . . . . . . . . . . . . . . . . . . . . . . . . 1 . 6 . . . . 3 System Corruption 32 | . . . . . . . . . . . . . . . . . . . . . . . . 3 . 20 . . . . 9 Parts Lost 45 | . 1 6 . . . 2 . 2 1 . . 2 . . . . . 5 . . . . . 1 . 3 . 1 . 7 14 Power 11 | . . 1 . . . . . . 1 . . . . . . . . 2 . . . . . 1 . 2 . 1 . 2 1 Propulsion 9 | . . 1 . . . . . . . . . 1 . . . . . . . . . . . . . . . . . 3 4 Utility 19 | . . 1 . . . 2 . 2 . . . 1 . . . . . 3 . . . . . . . 1 . . . 2 7 Weapon 6 | . 1 3 . . . . . . . . . . . . . . . . . . . . . . . . . . . . 2 Highest Loss Streak 9 | . 1 4 . . . 2 . 1 1 . . 1 . . . . . 2 . . . . . 1 . 1 . 1 . 4 9 To Critical Strikes 1 | . . . . . . . . . . . . . . . . . . . . . . . . . . . . . . 1 . Average Backups 21 | 6 15 19 19 22 23 22 23 23 21 23 22 21 20 20 20 20 22 24 24 26 24 25 25 25 25 25 25 26 25 25 9 Power 1 | 1 2 1 2 1 1 1 2 2 1 1 2 1 1 1 1 2 2 1 2 1 1 1 1 1 2 1 1 . 1 1 . Propulsion 3 | 4 5 8 7 5 6 6 5 6 5 4 3 2 2 1 2 2 2 2 2 2 3 3 2 2 3 2 3 2 2 . . Utility 9 | . 2 2 2 6 6 9 9 8 9 10 10 10 10 11 10 10 12 14 14 15 14 15 16 15 13 13 12 15 13 15 4 Weapon 4 | 1 4 5 6 7 7 4 4 4 4 6 6 5 5 4 5 4 5 4 4 4 4 3 3 3 4 3 5 3 5 4 1 Tool/Special . | . . . . . . . . . . . . . . . . . . . . . . . . . . . . . . . . Unused Backups 76 | . 3 2 2 3 9 . 2 . . 6 . 3 2 3 . 4 . 2 . 6 . 3 . 4 2 4 . 4 . 2 10 Power 11 | . 2 . . 1 1 . . . . 1 . . . . . 1 . . . 2 . . . 1 . . . 1 . . 1 Propulsion 12 | . . 2 2 . 1 . 1 . . 3 . . . 1 . 2 . . . . . . . . . . . . . . . Utility 35 | . . . . 1 . . 1 . . 2 . 3 2 1 . . . 2 . 4 . 3 . 3 1 3 . 3 . 2 4 Weapon 14 | . 1 . . 1 7 . . . . . . . . . . 1 . . . . . . . . 1 1 . . . . 2 Tool/Special 4 | . . . . . . . . . . . . . . 1 . . . . . . . . . . . . . . . . 3 Average Slot Usage (%) 84 | . 89 88 100 100 97 99 90 96 98 97 92 78 80 71 69 79 80 78 76 75 77 73 77 73 75 79 73 77 72 74 76 Engine 2 | . 14 6 . . . . 8 9 7 4 . . . . . . . . . . . . . . . . . . . . . Core 2 | . . 7 14 14 9 9 . . . . . . . . . . . 1 5 3 . . . . . . . . . . . Reactor 4 | . . . . . . . . . . 2 7 7 7 7 6 6 6 4 . 1 10 10 10 9 9 8 8 7 8 6 6 Treads 16 | . . 23 28 28 27 27 26 27 30 27 23 19 12 10 13 13 13 13 17 17 15 15 15 15 14 13 13 13 12 13 3 Leg 2 | . 27 4 . . . . . . . . . . . . . . . . . . . . . . . . . . . . 9 Device 7 | . 1 2 . 5 16 12 16 11 6 7 7 2 6 4 13 1 6 6 8 5 9 7 9 7 8 13 13 14 9 7 7 Storage 7 | . 17 14 14 14 9 9 9 9 7 7 7 7 7 7 6 6 6 6 5 5 5 5 5 5 4 4 4 4 4 4 1 Processor 4 | . . . . . . . . . 4 7 7 7 7 7 6 6 6 6 5 5 5 5 5 5 9 8 8 8 8 8 4 Hackware 11 | . . . . . . . . 11 22 23 23 13 12 10 6 18 13 13 11 11 13 13 15 13 13 12 13 15 18 20 35 Protection 7 | . . 1 14 8 16 23 10 9 2 . . 6 6 7 9 13 13 11 6 10 6 4 4 5 3 5 4 4 4 4 . Energy Gun 2 | . . 20 14 14 6 . . . . . . . . . . . . . . . . . . . . . . . . . . Energy Cannon 5 | . . . . . 6 12 16 12 4 7 7 4 6 3 . 2 6 6 9 2 4 5 5 4 4 3 4 4 4 5 . Ballistic Gun 3 | . 27 7 6 14 3 . . . . . . . . . . . . 1 . . . . . . . . . . . . . Special Weapon 1 | . . . . . . . . 1 3 6 7 . 1 . . 3 6 2 1 1 4 3 5 5 4 4 4 4 4 4 . Peak Build Rating 200 | 6 11 12 14 17 45 43 47 49 58 62 68 70 74 74 88 98 97 99 111 122 139 145 151 150 163 174 184 191 184 200 188 Average Rating 87 | 6 7 10 12 15 37 42 44 46 54 55 66 64 72 67 85 88 96 93 108 110 134 140 150 143 159 164 174 183 182 176 152 On Entrance 89 | 6 6 11 12 14 17 43 42 47 46 57 62 68 69 72 74 88 96 97 95 106 122 135 145 149 145 161 172 184 181 181 167 Naked Turns . | . . . . . . . . . . . . . . . . . . . . . . . . . . . . . . . . Heaviest Build 232 | 11 51 52 52 92 126 127 129 135 106 107 110 126 129 129 128 138 138 189 181 191 216 231 216 217 232 228 202 210 205 214 190 Greatest Support 230 | 20 20 40 40 40 66 66 78 78 106 126 126 140 140 150 150 150 150 150 225 230 230 230 230 230 230 225 205 205 205 225 191 Greatest Overweight (x) 13 | . 2 2 1 2 2 1 1 1 . . . 4 4 4 . . . 1 . . . 1 . . 1 1 . 1 . 1 13 Average Overweight (x) . | . 1 1 1 1 1 1 1 1 . . . 1 1 2 . . . . . . . . . . . . . . . . . Largest Inventory Capacity 30 | 8 20 20 20 25 25 25 25 25 25 25 25 25 25 25 25 25 25 30 30 30 30 30 30 30 30 30 30 30 30 30 30 Average Capacity 24 | 8 19 20 20 23 25 25 25 25 25 25 25 25 25 25 25 25 25 29 30 30 30 30 30 30 30 30 30 30 30 30 10 Most Carried 30 | 6 20 20 20 25 25 25 25 25 25 25 25 25 25 25 25 25 25 30 30 30 29 30 30 30 30 30 30 30 30 30 30 Average Carried 24 | 6 15 19 19 23 24 24 24 24 22 24 24 24 24 24 24 24 25 28 27 29 28 29 29 29 29 29 29 29 29 27 10 Final Capacity 30 | 8 20 20 20 25 25 25 25 25 25 25 25 25 25 25 25 25 25 30 30 30 30 30 30 30 30 30 30 30 30 30 5 Final Carried 30 | 6 20 19 18 25 25 25 25 24 25 25 25 25 25 25 25 25 25 30 27 30 28 30 30 30 30 30 28 29 29 30 4 Class Distribution -------------------- 29% | Bothacker-Mutant 28% | Botlord-Mutant 24% | Mutant 10% | Botlord-Skirmisher 4% | Botlord-Gunner Dominant Class ---------------- Mutant | -10/Materials Mutant | -10/Mines Mutant | -10/Exiles Mutant | -9/Mines Mutant | -8/Materials Mutant | -8/Garrison Bothacker-Mutant | -8/Materials Bothacker-Mutant | -8/Garrison Bothacker-Mutant | -7/Factory Bothacker-Mutant | -7/Waste Bothacker-Mutant | -7/Factory Bothacker-Mutant | -7/Garrison Bothacker-Mutant | -7/Factory Bothacker-Mutant | -7/Garrison Bothacker-Mutant | -6/Factory Botlord-Mutant | -6/Garrison Botlord-Mutant | -6/Factory Botlord-Mutant | -6/Garrison Botlord-Mutant | -5/Factory Botlord-Mutant | -5/Garrison Botlord-Mutant | -4/Factory Botlord-Mutant | -4/Garrison Botlord-Mutant | -4/Factory Botlord-Mutant | -4/Garrison Botlord-Skirmisher | -3/Research Botlord-Skirmisher | -3/Quarantine Botlord-Skirmisher | -2/Research Botlord-Mutant | -2/Garrison Botlord-Mutant | -1/Access Botlord-Tank | -1/Garrison Botlord-Gunner | -1/Access Resources | -11 -10 -10 -10 -9 -8 -8 -8 -8 -7 -7 -7 -7 -7 -7 -6 -6 -6 -6 -5 -5 -4 -4 -4 -4 -3 -3 -2 -2 -1 -1 -1 ----------- Run | Yrd Mat Min Exi Min Mat Gar Mat Gar Fac Was Fac Gar Fac Gar Fac Gar Fac Gar Fac Gar Fac Gar Fac Gar Res Qua Res Gar Acc Gar Acc Matter Collected 12254 | 210 487 272 . 78 368 484 363 409 152 183 . 813 347 535 . 443 . 964 . 645 154 608 116 476 702 874 . 300 110 591 1570 Remotely . | . . . . . . . . . . . . . . . . . . . . . . . . . . . . . . . . Salvage Created 15808 | . 435 277 . 50 769 597 1248 717 99 615 . 773 460 1177 . 180 . 1582 . 573 83 1068 112 943 1298 1144 . 102 . 555 951 Parts 766 | . 28 13 . 6 33 35 63 45 14 5 . 30 25 33 . 11 . 79 . 25 2 58 4 28 65 99 . 7 . 14 44 Haulers Intercepted 11 | . 2 . . . 2 . 5 . . . . . . . . . . . . . . . . . . . . . . . 2 Recyclers Shooed 6 | . 1 1 . . . . . . . . . . 1 . . . . . . . . . . . 2 . . . . . 1 Parts Field Recycled . | . . . . . . . . . . . . . . . . . . . . . . . . . . . . . . . . Retrieved Matter . | . . . . . . . . . . . . . . . . . . . . . . . . . . . . . . . . Parts Self-Destructed . | . . . . . . . . . . . . . . . . . . . . . . . . . . . . . . . . Prevented . | . . . . . . . . . . . . . . . . . . . . . . . . . . . . . . . . Kills | -11 -10 -10 -10 -9 -8 -8 -8 -8 -7 -7 -7 -7 -7 -7 -6 -6 -6 -6 -5 -5 -4 -4 -4 -4 -3 -3 -2 -2 -1 -1 -1 ------- Run | Yrd Mat Min Exi Min Mat Gar Mat Gar Fac Was Fac Gar Fac Gar Fac Gar Fac Gar Fac Gar Fac Gar Fac Gar Res Qua Res Gar Acc Gar Acc Combat Hostiles Destroyed 290 | . 10 15 . 1 12 26 20 22 2 . . 19 5 12 . 11 . 30 . 19 1 25 2 12 13 15 . 2 . 6 10 Melee 1 | . . . . . . . . . . . . . . 1 . . . . . . . . . . . . . . . . . Guns 25 | . 9 7 . 1 5 . . . . . . . . . . . . 3 . . . . . . . . . . . . . Cannons 140 | . . . . . 5 10 15 12 1 . . 15 5 7 . 3 . 6 . 6 1 14 2 9 12 4 . 2 . 5 6 AOE 97 | . 1 8 . . . 16 5 10 . . . 3 . 3 . 8 . 17 . 11 . 9 . 2 . . . . . . 4 Classes Destroyed 22 | . 5 1 . . 4 3 2 1 . . . . 1 . . . . 1 . . . 3 . . 1 . . . . . . Worker 7 | . . . . . 1 . 3 . . . . . . . . . . . . . 1 . . . 1 . . . . . 1 Builder 9 | . . . . . 1 . . . 1 . . . 2 . . . . . . . . . . . . . . . . . 5 Tunneler 5 | . 1 1 . 1 . . 1 . . . . . . . . . . . . . . . . . . . . . . . 1 Hauler 11 | . 2 . . . 2 . 5 . . . . . . . . . . . . . . . . . . . . . . . 2 Recycler 5 | . . . . . . . . . . . . . 2 . . . . . . . . . . . 1 . . . . . 2 Mechanic 1 | . . . . . . . 1 . . . . . . . . . . . . . . . . . . . . . . . . Operator 2 | . 1 . . . . . . . . . . . . . . . . . . . . . . . 1 . . . . . . Watcher 3 | . . . . . . . 1 . . . . . . . . . . . . . . . . 1 1 . . . . . . Swarmer 63 | . 3 1 . . . 9 3 4 . . . . . . . 7 . 13 . 11 . 10 . . 1 . . 1 . . . Cutter 2 | . . . . . . . . . . . . . . . . . . . . . . 2 . . . . . . . . . Grunt 98 | . 7 5 . 1 5 11 10 11 . . . 11 . 8 . 4 . 6 . 2 . 5 . 7 2 1 . . . 1 1 Brawler 5 | . . . . . . 1 1 1 . . . . . . . . . 1 . . . . . 1 . . . . . . . Duelist 8 | . . . . . . 1 . . . . . 1 . 1 . . . 2 . 2 . . . 1 . . . . . . . Protector 1 | . . . . . . . . . . . . . . . . . . . . . . 1 . . . . . . . . . Sentry 31 | . . . . . 5 . 6 3 . . . 8 . . . . . 1 . 2 . 1 . 1 4 . . . . . . Demolisher 1 | . . . . . . . . . . . . . . . . . . . . . . 1 . . . . . . . . . Specialist 5 | . . . . . . . . 1 . . . . . . . . . 1 . . . 2 . . . 1 . . . . . Hunter 11 | . . . . . 2 1 . . 1 . . . 1 2 . . . 3 . . . . . . . . . . . 1 . Programmer 47 | . . . . . . 3 . 2 1 . . . 4 2 . . . 2 . 2 1 3 2 2 6 2 . 1 . 4 10 Behemoth 5 | . . . . . . . . . . . . . . . . . . 2 . . . 1 . 1 . . . . . 1 . Quarantine Guard 11 | . . . . . . . . . . . . . . . . . . . . . . . . . . 11 . . . . . Executioner 1 | . . . . . . . . . . . . . . . . . . . . . . . . . 1 . . . . . . Assembled 9 | . . 9 . . . . . . . . . . . . . . . . . . . . . . . . . . . . . Best Kill Streak 9 | . 2 9 . 1 4 4 4 5 1 . . 4 2 4 . 4 . 6 . 8 2 5 2 3 6 2 . 2 . 2 7 Combat Bots Only 9 | . 2 9 . 1 2 4 4 5 1 . . 4 1 4 . 4 . 6 . 8 1 5 2 3 6 2 . 2 . 2 5 Max Kills in Single Turn 4 | . 1 4 . 1 1 3 3 4 1 . . 2 1 2 . 3 . 3 . 2 1 2 1 1 1 1 . 1 . 1 3 Gunslinging . | . . . . . . . . . . . . . . . . . . . . . . . . . . . . . . . . Exploded 4 | . 1 4 . . . 3 3 4 . . . 2 . 2 . 3 . 3 . 2 . 2 . 1 . . . . . . 1 Melee 1 | . . . . . . . . . . . . . . 1 . . . . . . . . . . . . . . . . . Uniques/NPCs Destroyed . | . . . . . . . . . . . . . . . . . . . . . . . . . . . . . . . . Combat | -11 -10 -10 -10 -9 -8 -8 -8 -8 -7 -7 -7 -7 -7 -7 -6 -6 -6 -6 -5 -5 -4 -4 -4 -4 -3 -3 -2 -2 -1 -1 -1 -------- Run | Yrd Mat Min Exi Min Mat Gar Mat Gar Fac Was Fac Gar Fac Gar Fac Gar Fac Gar Fac Gar Fac Gar Fac Gar Res Qua Res Gar Acc Gar Acc Hostile Shots Fired 2072 | . 42 52 . 4 100 58 114 63 10 . . 278 57 49 . 65 . 201 . 60 34 154 18 57 127 142 . 14 6 215 152 Missed 522 | . 9 11 . . 28 17 24 17 2 . . 69 21 15 . 27 . 49 . 17 12 32 3 13 31 32 . 2 1 42 48 Hits 1550 | . 33 41 . 4 72 41 90 46 8 . . 209 36 34 . 38 . 152 . 43 22 122 15 44 96 110 . 12 5 173 104 Melee 39 | . . 8 . . . . . . . . . 5 . . . . . 8 . 4 . 12 . 2 . . . . . . . Projectile 1511 | . 33 33 . 4 72 41 90 46 8 . . 204 36 34 . 38 . 144 . 39 22 110 15 42 96 110 . 12 5 173 104 AOE 4 | . . 2 . . . . . . . . . . . . . . . . . . . 2 . . . . . . . . . Critical Strikes 64 | . 1 . . . 2 1 6 3 . . . 4 1 . . 1 . 2 . 2 1 8 2 3 6 6 . 1 . 6 8 Actively Blocked 6 | . . . . . . . . . . . . . . . . . . 1 . . . 4 . . . . . 1 . . . Part Disruptions 12 | . . 2 . . . . . . . . . . 1 . . 2 . 1 . . . . . . . . . . . 1 5 Actively Blocked 1 | . . . . . . . . . . . . . . . . . . 1 . . . . . . . . . . . . . Damage Taken 25836 | . 411 819 . 46 692 643 1046 745 318 . . 2242 557 534 . 495 . 2949 . 644 373 1678 125 728 1393 2619 . 309 171 3755 2544 Core 2173 | . 50 121 . . 70 57 68 48 44 . . 98 91 56 . 42 . 321 . 33 20 65 11 32 55 215 . 20 44 268 344 Absorbed by Shields 4959 | . . . . . 204 24 208 31 . . . 212 . . . 80 . 288 . 260 133 919 134 518 773 845 . 83 . 247 . Reduced by Siege Mode 1217 | . . . . . . . . . . . . 80 . 5 . . . 231 . 34 . 170 12 24 30 247 . . . 384 . Redirected to Shielding 77 | . . . . . . . . . . . . . . . . 23 . 54 . . . . . . . . . . . . . Ignored by Resistances 338 | . . . . . 205 40 26 11 . . . . . . . . . 38 . . . 18 . . . . . . . . . Regen/Repaired (Parts) 3000 | . 131 . . . 127 . 126 . 284 . . . 923 . . . . . 411 . . . 534 . . 464 . . . . . Core Remaining (%) 71 | 100 . . . 31 . . . 55 . . . . . 58 . . . 57 . 96 . . . 88 . 73 . 98 . . 59 Volleys Fired 1516 | . 56 33 . 6 71 67 79 51 18 33 2 76 43 93 2 38 . 102 4 45 38 105 29 94 118 104 . 29 6 96 78 Largest 2 | . 2 2 . 2 2 2 2 2 2 1 1 2 1 2 1 1 . 2 1 2 1 1 1 1 1 1 . 1 1 1 2 Hottest 207 | . 40 100 . 70 143 143 150 165 165 75 90 129 90 90 50 90 . 207 113 167 120 120 120 120 120 120 . 120 120 120 130 Shots Fired 1819 | . 110 66 . 12 129 88 132 74 21 33 2 77 44 95 2 38 . 113 4 60 38 107 29 93 119 100 . 29 6 98 100 Gun 283 | . 108 58 . 12 89 . . . . . . . . . . . . 13 . . . . . . . . . . . . 3 Cannon 1165 | . . . . . 40 64 120 53 14 33 2 65 39 84 2 16 . 74 1 39 19 76 28 62 99 93 . 14 1 61 66 Launcher 96 | . 2 8 . . . 16 7 9 . . . 6 . 3 . 5 . 17 . 8 . 8 . . . . . . . . 7 Special 275 | . . . . . . 8 5 12 7 . . 6 5 8 . 17 . 9 3 13 19 23 1 31 20 7 . 15 5 37 24 Kinetic 310 | . 108 32 . 6 22 . . . . . . 37 . 17 2 10 . 13 . 16 . . . . . . . . . . 47 Thermal 1006 | . . 26 . 6 107 64 120 53 14 33 2 28 39 67 . 6 . 34 1 23 19 64 28 62 83 40 . 12 1 58 16 Explosive 96 | . 2 8 . . . 16 7 9 . . . 6 . 3 . 5 . 17 . 8 . 8 . . . . . . . . 7 Electromagnetic 132 | . . . . . . . . . . . . . . . . . . 40 . . . 12 . . 16 53 . 2 . 3 6 Robot Hit Streak 26 | . 7 10 . 6 11 9 12 9 2 17 . 14 20 17 . 4 . 17 2 19 20 16 9 14 16 13 . 9 11 26 18 Robot Miss Streak 5 | . 4 3 . 2 5 2 2 3 4 1 . 2 2 2 . 3 . 2 1 2 4 4 . 2 4 4 . 1 1 4 4 Penetration Max 1 | . . . . . . . . . . . . . . . . . . 1 . . . . . . . . . . . . . Secondary Targets 3 | . . 1 . . 2 . . . . . . . . . . . . . . . . . . . . . . . . . . Max Gunslinging Chain 1 | . . 1 . . 1 . . . . . . . . . . . . . . . . . . . . . . . . . . Capacitor 49 | . . . . . . . . . . . . . . . . . . . . . . 11 . . . . . 14 1 23 . Shots Hit Robots 1171 | . 65 39 22 8 77 45 85 37 6 29 . 58 28 75 . 15 . 85 2 42 20 79 7 73 62 56 . 19 4 76 57 Core Hits 498 | . 30 34 . 4 21 37 41 27 2 4 . 33 9 29 . 16 . 47 . 27 1 42 1 14 21 21 . 3 . 7 27 Critical Kills 14 | . 1 . . . . . . . . . . 1 . 5 . . . 3 . 2 . 1 . . . . . . . 1 . Critical Parts Destroyed 2 | . . . . . 1 . . . . . . . . . . . . 1 . . . . . . . . . . . . . Critical Strikes 32 | . 1 2 . . 3 . . . . . . 6 1 6 . . . 5 . 2 . 1 . . . 2 . . . 1 2 Burn 4 | . . 2 . . 2 . . . . . . . . . . . . . . . . . . . . . . . . . . Meltdown 11 | . . . . . . . . . . . . 1 . 5 . . . 1 . 2 . 1 . . . . . . . 1 . Destroy 5 | . 1 . . . 1 . . . . . . . . . . . . 3 . . . . . . . . . . . . . Blast 8 | . . . . . . . . . . . . 5 . 1 . . . . . . . . . . . . . . . . 2 Corrupt 3 | . . . . . . . . . . . . . . . . . . 1 . . . . . . . 2 . . . . . Sever 1 | . . . . . . . . . . . . . 1 . . . . . . . . . . . . . . . . . . Melee Attacks 73 | . . . 22 . 3 1 . 2 3 . . 6 33 3 . . . . . . . . . . . . . . . . . Impact 9 | . . . . . 3 1 . 2 3 . . . . . . . . . . . . . . . . . . . . . . Slashing 42 | . . . . . . . . . . . . 6 33 3 . . . . . . . . . . . . . . . . . Piercing . | . . . . . . . . . . . . . . . . . . . . . . . . . . . . . . . . Sneak Attacks 29 | . . . 21 . . . . . . . . . 6 2 . . . . . . . . . . . . . . . . . Combat Hostiles 2 | . . . . . . . . . . . . . . 2 . . . . . . . . . . . . . . . . . Follow-up Attacks . | . . . . . . . . . . . . . . . . . . . . . . . . . . . . . . . . Damage Inflicted 43560 | . 795 845 . 118 1613 2794 2821 1656 96 750 24 3048 1125 3088 . 1389 . 4092 . 2016 326 3627 319 2070 2468 2104 . 248 . 2121 4007 Guns 2384 | . 647 466 . 106 987 . . . . . . . . . . . . 94 . . . . . . . . . . . . 84 Cannons 28249 | . . . . . 597 791 1923 834 62 750 . 2251 586 2417 . 226 . 2097 . 1134 326 2343 317 2068 2439 2078 . 248 . 2121 2641 Explosions 11740 | . 106 365 . . . 2003 822 816 . . . 689 . 487 . 1163 . 1889 . 847 . 1284 . . . . . . . . 1269 Melee 841 | . . . . . . . . . 34 . . 84 539 184 . . . . . . . . . . . . . . . . . Ramming 346 | . 42 14 . 12 29 . 76 6 . . 24 24 . . . . . 12 . 35 . . 2 2 29 26 . . . . 13 Kinetic 6108 | . 647 271 . 42 314 . . . . . . 1613 . 600 . 226 . 94 . 469 . . . . . . . . . . 1832 Thermal 21107 | . . 195 . 64 1270 791 1923 834 62 750 . 638 586 1817 . . . 1105 . 665 326 2083 317 2068 1942 576 . 248 . 2121 726 Explosive 11640 | . 106 365 . . . 2003 822 816 . . . 689 . 487 . 1163 . 1789 . 847 . 1284 . . . . . . . . 1269 Electromagnetic 3518 | . . . . . . . . . . . . . . . . . . 1092 . . . 260 . . 497 1502 . . . . 167 Impact 34 | . . . . . . . . . 34 . . . . . . . . . . . . . . . . . . . . . . Slashing 807 | . . . . . . . . . . . . 84 539 184 . . . . . . . . . . . . . . . . . Piercing . | . . . . . . . . . . . . . . . . . . . . . . . . . . . . . . . . Highest Corruption 47 | . . . . . . . . 1 2 2 2 2 6 6 . 2 2 7 . . 1 5 16 22 13 41 . . . 15 47 Average Corruption 11 | . . . . . . . . 1 1 2 2 2 2 6 . 1 2 5 . . 1 4 7 20 11 20 . . . 14 28 Corruption Purged 2 | . . . . . . . . . . . . . 2 . . . . . . . . . . . . . . . . . . Corruption Blocked . | . . . . . . . . . . . . . . . . . . . . . . . . . . . . . . . . Effects 597 | . . . . . . . . 4 2 9 4 13 21 35 . . . 47 . . 1 33 27 59 55 98 . . . 46 143 Message Errors 134 | . . . . . . . . . 1 3 . 6 3 8 . . . 7 . . 1 8 9 13 10 25 . . . 8 32 Matter Fused 158 | . . . . . . . . 1 . 4 3 2 6 9 . . . 15 . . . 5 7 17 21 25 . . . 7 36 Heat Flow Errors 77 | . . . . . . . . 1 1 1 . 1 3 4 . . . 6 . . . 9 2 5 7 9 . . . 9 19 Energy Discharges 63 | . . . . . . . . . . 1 1 1 5 3 . . . 5 . . . 6 3 5 2 14 . . . 5 12 Parts Rejected 4 | . . . . . . . . . . . . . . . . . . 1 . . . . . 2 . 1 . . . . . Parts Fused 6 | . . . . . . . . . . . . . . 1 . . . 1 . . . . 2 . . . . . . 1 1 Data Loss (minor) 65 | . . . . . . . . 1 . . . 2 3 4 . . . 5 . . . 1 . 7 8 7 . . . 11 16 Data Loss (major) 28 | . . . . . . . . . . . . . . 3 . . . 3 . . . 2 2 3 4 3 . . . 3 5 Misfires 26 | . . . . . . . . 1 . . . . 1 2 . . . 3 . . . 2 1 1 2 1 . . . 2 10 Alerts 14 | . . . . . . . . . . . . 1 . . . . . 1 . . . . . 3 . 7 . . . . 2 Misdirections 6 | . . . . . . . . . . . . . . . . . . . . . . . . 1 . 1 . . . . 4 Weapon Failures 16 | . . . . . . . . . . . . . . 1 . . . . . . . . 1 2 1 5 . . . . 6 Overload Shots . | . . . . . . . . . . . . . . . . . . . . . . . . . . . . . . . . Overflow Damage 1785 | . . 7 . . . 72 34 20 24 . . 44 161 72 . 46 . 187 . 54 46 4 89 76 129 183 . 4 . 112 421 Projectiles 1280 | . . . . . . 23 34 . . . . 24 6 22 . . . 122 . 22 46 4 89 76 129 183 . 4 . 112 384 Explosions 278 | . . 7 . . . 49 . 20 . . . . . 22 . 46 . 65 . 32 . . . . . . . . . . 37 Melee 227 | . . . . . . . . . 24 . . 20 155 28 . . . . . . . . . . . . . . . . . Knockbacks 21 | . . . . . 1 . . . . . . 7 . 3 . . . . . 5 . . . . . . . . . . 5 Impact 1 | . . . . . 1 . . . . . . . . . . . . . . . . . . . . . . . . . . Kinetic 17 | . . . . . . . . . . . . 5 . 3 . . . . . 4 . . . . . . . . . . 5 Secondary 3 | . . . . . . . . . . . . 2 . . . . . . . 1 . . . . . . . . . . . Self-Inflicted Damage 530 | . . 63 . . . 88 . 34 . . . 82 . 8 . . . 252 . 3 . . . . . . . . . . . Shots 15 | . . 2 . . . 2 . 1 . . . 2 . 1 . . . 6 . 1 . . . . . . . . . . . Rammed 22 | . . 1 . 4 1 . 4 1 . . 2 2 . . . . . 1 . 2 . . 1 1 1 1 . . . . . Targets Rammed 35 | . 10 2 . 4 1 . 5 1 . . 2 2 . . . . . 1 . 2 . . 1 1 1 1 . . . . 1 Kicked 12 | . 10 1 . . . . . . . . . . . . . . . . . . . . . . . . . . . . 1 Crushed 1 | . . . . . . . 1 . . . . . . . . . . . . . . . . . . . . . . . . Highest Temperature 389 | . 36 118 . 120 59 135 311 132 374 74 40 358 358 389 . 88 . 239 4 18 132 331 195 225 271 191 . 195 52 325 236 Average Temperature 77 | . 10 52 . 51 15 40 70 47 114 35 23 107 82 88 . 39 . 56 3 6 39 92 76 94 48 57 . 80 28 121 83 Received Heat Transfer 4071 | . 207 241 . 24 255 195 439 321 . . . 906 120 171 . 84 . 243 . 51 . 248 . 83 132 124 . 31 27 97 72 Effects 5 | . . . . . . . . . . . . 1 1 . . . . . . . . 1 . . . . . . . 2 . Energy Bleed 3 | . . . . . . . . . . . . 1 1 . . . . . . . . 1 . . . . . . . . . Interference 2 | . . . . . . . . . . . . . . . . . . . . . . . . . . . . . . 2 . Siege Activations 32 | . . . . . . . . . . . . 4 . 1 . 2 . 7 . 1 . 4 1 1 1 9 . . . 1 . Total Turns 632 | . . . . . . . . . . . . 77 . 14 . 7 . 130 . 31 . 106 11 34 25 129 . . . 68 . Longest Duration 68 | . . . . . . . . . . . . 51 . 14 . 4 . 65 . 31 . 42 11 34 25 35 . . . 68 . Martial Activations . | . . . . . . . . . . . . . . . . . . . . . . . . . . . . . . . . Shielding Activations . | . . . . . . . . . . . . . . . . . . . . . . . . . . . . . . . . Robots Disrupted . | . . . . . . . . . . . . . . . . . . . . . . . . . . . . . . . . Combat Hostiles . | . . . . . . . . . . . . . . . . . . . . . . . . . . . . . . . . Robots Corrupted 20 | . . . . . . . . . 1 . . . . . . . . 6 . . . 1 . . 1 11 . . . . . Combat Hostiles 18 | . . . . . . . . . 1 . . . . . . . . 4 . . . 1 . . 1 11 . . . . . Parts Fried 47 | . . . . . . . . . . . . . . . . . . 15 . . . 1 . . 4 27 . . . . . Impact Corruptions 1 | . . . . . . . . . 1 . . . . . . . . . . . . . . . . . . . . . . Robots Melted 14 | . . . . . 2 . . . . . . 1 . 5 . . . 1 . 2 . 1 . 1 . . . . . 1 . Combat Hostiles 9 | . . . . . 2 . . . . . . 1 . 1 . . . . . 2 . 1 . 1 . . . . . 1 . Parts Melted 75 | . . 3 . . 8 1 . 7 . . . 2 5 11 . . . 2 . 7 3 5 . 5 6 . . 3 . 7 . Heat Transferred 23451 | . . 703 . 185 2590 1221 2886 1242 87 1110 . 948 800 2800 . . . 1038 . 573 259 1250 222 1606 1480 407 . 185 . 1341 518 Parts Sabotaged . | . . . . . . . . . . . . . . . . . . . . . . . . . . . . . . . . Parts Stolen . | . . . . . . . . . . . . . . . . . . . . . . . . . . . . . . . . Parts Stripped . | . . . . . . . . . . . . . . . . . . . . . . . . . . . . . . . . Power Chain Reactions 1 | . . . . . . . . . . . . . . . . . . 1 . . . . . . . . . . . . . Alert | -11 -10 -10 -10 -9 -8 -8 -8 -8 -7 -7 -7 -7 -7 -7 -6 -6 -6 -6 -5 -5 -4 -4 -4 -4 -3 -3 -2 -2 -1 -1 -1 ------- Run | Yrd Mat Min Exi Min Mat Gar Mat Gar Fac Was Fac Gar Fac Gar Fac Gar Fac Gar Fac Gar Fac Gar Fac Gar Res Qua Res Gar Acc Gar Acc Maximum Alert Level 5 | . . . . . . 3 2 3 2 . . 3 2 3 2 3 2 4 3 5 3 4 3 4 3 1 . 4 3 4 3 Low Security (%) 39 | 100 100 100 . 100 100 15 74 17 28 100 100 33 5 21 . . . . . . . . . . . 92 100 3 . . 43 Level 1 17 | . . . . . . 6 20 13 66 . . 15 84 30 86 34 . 9 . . . 9 . . 38 7 . 17 . . 35 Level 2 14 | . . . . . . 35 4 46 5 . . 29 9 43 13 24 100 15 8 4 20 23 34 23 35 . . 7 . . 11 Level 3 19 | . . . . . . 42 . 22 . . . 21 . 4 . 41 . 43 91 20 79 50 65 49 26 . . 43 100 27 10 Level 4 7 | . . . . . . . . . . . . . . . . . . 30 . 33 . 16 . 27 . . . 28 . 72 . Level 5 1 | . . . . . . . . . . . . . . . . . . . . 40 . . . . . . . . . . . High Security . | . . . . . . . . . . . . . . . . . . . . . . . . . . . . . . . . Max Security . | . . . . . . . . . . . . . . . . . . . . . . . . . . . . . . . . Peak Influence 1793 | . 85 107 . 32 85 1081 544 941 493 47 1 962 504 791 415 925 485 1457 764 1793 1029 1243 979 1314 830 223 114 1483 945 1473 916 Initial 940 | . . . . . . 34 526 130 493 47 . . 504 146 415 203 485 318 764 487 940 352 669 567 738 186 114 70 889 710 883 Average 438 | . 10 18 . . 22 617 116 521 241 3 . 435 267 415 350 565 472 907 731 1336 788 829 790 928 548 126 105 875 890 1198 288 Influence Increases 18925 | . 336 280 . 57 420 1127 765 911 143 . 1 1102 601 705 16 822 . 1289 2 1396 750 1065 737 977 882 679 . 1603 229 1393 637 Destroy 0b10 Robot/C 8760 | . 200 200 . 40 240 580 400 460 40 . . 580 180 300 . 440 . 780 . 620 360 580 240 480 420 320 . 480 100 520 200 Destroy 0b10 Robot/NC 290 | . 20 5 . 5 20 . 55 . 5 . . . 20 30 . . . 20 . . 10 5 10 5 20 . . . . . 60 Destroy Leader 1208 | . 44 40 . 10 94 30 112 30 20 . . 30 70 50 . 10 . 60 . 60 50 40 82 20 72 130 . 30 10 70 44 Allied During Kill 1811 | . . 15 . 2 . 18 . 3 3 . . 25 13 9 . 45 . 27 . 105 224 32 68 144 171 28 . 445 110 288 36 Trap Triggered on 0b10 40 | . . . . . . . 40 . . . . . . . . . . . . . . . . . . . . . . . . Successful Hack 484 | . 37 . . . 13 44 42 7 52 . . . 65 16 . 28 . . . 28 . . 52 . 34 52 . . . 14 . Disable Machine 510 | . . . . . 30 15 . 30 15 . . 30 45 15 15 . . 15 . . 30 . 105 . 30 90 . 15 . . 30 Anti-Garrison Action 3450 | . . . . . . 300 . 300 . . . 350 150 250 . 200 . 200 . 250 . 300 . 300 . . . 550 . 300 . Destroy Structure 1772 | . 5 20 . . 8 140 101 66 8 . 1 72 58 20 1 69 . 142 2 153 76 63 180 28 120 44 . 53 9 66 267 Partial Spotted 75 | . 15 . . . 15 . . 15 . . . 15 . . . . . . . . . . . . . . . 15 . . . Lose Combat Pursuer 525 | . 15 . . . . . 15 . . . . . . 15 . 30 . 45 . 180 . 45 . . 15 15 . 15 . 135 . Influence Decreases 18612 | . 336 238 42 57 367 99 1645 171 948 136 1 140 1354 123 516 188 470 287 763 299 2040 291 1204 473 1864 808 109 214 824 808 1797 Entered New Map 7740 | . . . 42 . . 19 555 71 448 89 . . 458 63 376 88 440 137 693 209 853 151 608 243 576 146 89 24 594 178 590 Time Decay 5693 | . 326 166 . 37 334 . 665 . 310 47 1 . 656 . 140 . 30 . 70 . 392 . 386 . 618 612 20 . 190 . 693 Lost Part 402 | . 10 32 . . . 20 . 20 10 . . 20 . . . . . 50 . . . . . 10 . 30 . 10 . 70 120 Lost Ally 2844 | . . 40 . 20 . 60 . 80 30 . . 120 90 60 . 100 . 100 . 90 220 140 60 220 220 20 . 180 40 560 394 Purge Threat 1933 | . . . . . 33 . 425 . 150 . . . 150 . . . . . . . 575 . 150 . 450 . . . . . . Squads Dispatched 63 | . 1 . . 1 4 . 3 . 2 . . . 12 . . . . . . . 6 . 10 . 8 4 1 . 2 . 9 Investigation 8 | . 1 . . 1 2 . 1 . . . . . . . . . . . . . 2 . . . . . 1 . . . . Extermination 21 | . . . . . . . . . 1 . . . 5 . . . . . . . 1 . 1 . 5 1 . . 1 . 6 Reinforcement 15 | . . . . . . . 2 . 1 . . . 2 . . . . . . . 2 . 4 . 2 1 . . 1 . . Assault 10 | . . . . . . . . . . . . . 4 . . . . . . . 1 . 2 . 1 2 . . . . . Garrison 9 | . . . . . 2 . . . . . . . 1 . . . . . . . . . 3 . . . . . . . 3 Intercept . | . . . . . . . . . . . . . . . . . . . . . . . . . . . . . . . . Searches Triggered . | . . . . . . . . . . . . . . . . . . . . . . . . . . . . . . . . Construction Impeded 3 | . . . . . . . 1 . . . . . . . . . . . . . 1 . 1 . . . . . . . . Haulers Reinforced . | . . . . . . . . . . . . . . . . . . . . . . . . . . . . . . . . Active Scanning Responses . | . . . . . . . . . . . . . . . . . . . . . . . . . . . . . . . . Cargo Convoy Interrupts . | . . . . . . . . . . . . . . . . . . . . . . . . . . . . . . . . Alert ID Control Effect 30 | . . . . . . . . . . . . . . . . . . . . . . . . . . . . . . 2 28 Stealth | -11 -10 -10 -10 -9 -8 -8 -8 -8 -7 -7 -7 -7 -7 -7 -6 -6 -6 -6 -5 -5 -4 -4 -4 -4 -3 -3 -2 -2 -1 -1 -1 --------- Run | Yrd Mat Min Exi Min Mat Gar Mat Gar Fac Was Fac Gar Fac Gar Fac Gar Fac Gar Fac Gar Fac Gar Fac Gar Res Qua Res Gar Acc Gar Acc Distress Signals 18 | . 2 . . . 3 . 5 . . . . . . . . . . . . . 1 . 2 . . . . . 1 1 3 Communications Jammed 626 | . . . . . . . . . . . . . . . . . . . . . . . . . 513 . . . 1 112 . Distress Signals 625 | . . . . . . . . . . . . . . . . . . . . . . . . . 513 . . . . 112 . Times Spotted 644 | . 26 31 . 1 20 16 42 22 3 . 1 32 18 20 1 32 . 46 . 31 22 39 5 39 33 24 . 27 11 52 50 Peak Tracking Total 13 | . 4 13 . . 4 3 6 5 1 . 1 6 2 4 1 8 . 6 . 11 6 8 2 3 7 3 . 4 4 12 6 Tactical Retreats 22 | . 1 1 . . . . 1 . . . . . . 1 . 2 . 1 . 7 . 2 . . 1 1 . 1 . 3 . Traps | -11 -10 -10 -10 -9 -8 -8 -8 -8 -7 -7 -7 -7 -7 -7 -6 -6 -6 -6 -5 -5 -4 -4 -4 -4 -3 -3 -2 -2 -1 -1 -1 ------- Run | Yrd Mat Min Exi Min Mat Gar Mat Gar Fac Was Fac Gar Fac Gar Fac Gar Fac Gar Fac Gar Fac Gar Fac Gar Res Qua Res Gar Acc Gar Acc Traps Triggered 52 | . 1 . . . 2 6 1 8 3 . . 8 4 5 . . . . . 1 . 4 2 1 1 1 . 1 1 2 . Indirectly . | . . . . . . . . . . . . . . . . . . . . . . . . . . . . . . . . Trap Hack Attempts . | . . . . . . . . . . . . . . . . . . . . . . . . . . . . . . . . Triggered . | . . . . . . . . . . . . . . . . . . . . . . . . . . . . . . . . Disarmed . | . . . . . . . . . . . . . . . . . . . . . . . . . . . . . . . . Reprogrammed . | . . . . . . . . . . . . . . . . . . . . . . . . . . . . . . . . Reused . | . . . . . . . . . . . . . . . . . . . . . . . . . . . . . . . . Traps Extracted . | . . . . . . . . . . . . . . . . . . . . . . . . . . . . . . . . Installed . | . . . . . . . . . . . . . . . . . . . . . . . . . . . . . . . . Triggered 4 | . . . . . . . 4 . . . . . . . . . . . . . . . . . . . . . . . . Machines | -11 -10 -10 -10 -9 -8 -8 -8 -8 -7 -7 -7 -7 -7 -7 -6 -6 -6 -6 -5 -5 -4 -4 -4 -4 -3 -3 -2 -2 -1 -1 -1 ---------- Run | Yrd Mat Min Exi Min Mat Gar Mat Gar Fac Was Fac Gar Fac Gar Fac Gar Fac Gar Fac Gar Fac Gar Fac Gar Res Qua Res Gar Acc Gar Acc Machines Disabled 75 | . . . . . 2 5 . 5 1 . . 6 4 3 1 3 . 3 . 6 2 4 7 3 2 6 . 6 . 4 2 Max in Single Turn 1 | . . . . . 1 1 . 1 1 . . 1 1 1 1 1 . 1 . 1 . 1 . 1 1 1 . 1 . 1 1 Garrison Access 4 | . . . . . . . . . . . . . 2 . . . . . . . . . . . 1 1 . . . . . Garrison Relay 39 | . . . . . . 3 . 3 . . . 4 . 2 . 3 . 2 . 5 . 4 . 3 . . . 5 . 5 . Energy Cycler 1 | . . . . . . . . . . . . . . . . . . . . . . . . . . . . . . . 1 Machines Repaired . | . . . . . . . . . . . . . . . . . . . . . . . . . . . . . . . . Machines Dismantled . | . . . . . . . . . . . . . . . . . . . . . . . . . . . . . . . . Machines Sabotaged . | . . . . . . . . . . . . . . . . . . . . . . . . . . . . . . . . Overloaded Fab Kills . | . . . . . . . . . . . . . . . . . . . . . . . . . . . . . . . . Hacking | -11 -10 -10 -10 -9 -8 -8 -8 -8 -7 -7 -7 -7 -7 -7 -6 -6 -6 -6 -5 -5 -4 -4 -4 -4 -3 -3 -2 -2 -1 -1 -1 --------- Run | Yrd Mat Min Exi Min Mat Gar Mat Gar Fac Was Fac Gar Fac Gar Fac Gar Fac Gar Fac Gar Fac Gar Fac Gar Res Qua Res Gar Acc Gar Acc Machines Accessed 120 | . 9 . 2 1 7 4 12 4 4 . 3 2 12 4 3 2 1 2 1 2 4 3 7 3 9 12 1 1 2 3 . Terminals 77 | . 7 . . . 3 4 9 4 2 . 1 2 5 4 1 2 . 2 . 2 1 3 3 3 5 10 . 1 . 3 . Fabricators 6 | . . . . . . . . . . . . . 2 . . . . . . . 2 . 1 . 1 . . . . . . Repair Stations 12 | . 1 . . . 2 . 1 . 1 . 1 . 3 . . . . . . . . . 2 . . 1 . . . . . Recycling Units 7 | . 1 . . . 1 . . . 1 . . . 1 . 1 . . . . . . . . . 2 . . . . . . Scanalyzers 3 | . . . . . . . 1 . . . . . . . . . . . . . . . . . . 1 . . 1 . . Garrison Access 12 | . . . . . 1 . 1 . . . 1 . 1 . 1 . 1 . 1 . 1 . 1 . 1 . 1 . 1 . . Total Hacks 268 | . 34 . 2 1 19 11 31 8 8 . 5 5 31 9 5 4 2 2 2 5 11 5 13 8 16 20 3 1 3 4 . Successful 124 | . 16 . 2 1 12 5 20 2 5 . 3 . 14 2 3 2 2 . 2 2 6 1 8 . 5 6 2 . 2 1 . Failed 143 | . 17 . . . 7 6 11 6 3 . 2 5 17 7 2 2 . 2 . 3 5 4 5 8 11 14 1 1 1 3 . Catastrophic 31 | . 1 . . . 1 2 1 . 1 . . 1 2 1 2 1 . 1 . 1 2 3 2 1 1 5 . 1 1 . . Database Lockouts 1 | . 1 . . . . . . . . . . . . . . . . . . . . . . . . . . . . . . Manual 78 | . 9 . 1 . 2 5 15 . 3 . 1 . 15 . . . . . . 3 8 2 4 . 4 5 1 . . . . Terminals 174 | . 25 . . . 6 11 25 8 4 . 2 5 14 9 2 4 . 2 . 5 4 5 6 8 10 14 . 1 . 4 . Fabricators 12 | . . . . . . . . . . . . . 5 . . . . . . . 4 . 1 . 2 . . . . . . Repair Stations 37 | . 8 . . . 10 . 2 . 3 . 1 . 6 . . . . . . . . . 4 . . 3 . . . . . Recycling Units 11 | . 1 . . . 2 . . . 1 . . . 3 . 1 . . . . . . . . . 3 . . . . . . Scanalyzers 6 | . . . . . . . 2 . . . . . . . . . . . . . . . . . . 3 . . 1 . . Garrison Access 25 | . . . . . 1 . 2 . . . 2 . 3 . 2 . 2 . 2 . 3 . 2 . 1 . 3 . 2 . . Terminal Hacks 54 | . 10 . 2 1 2 4 9 2 2 . . . 5 2 1 2 . . . 2 2 1 2 . 2 2 . . . 1 . Record 1 | . . . 1 . . . . . . . . . . . . . . . . . . . . . . . . . . . . Robot Analysis 1 | . 1 . . . . . . . . . . . . . . . . . . . . . . . . . . . . . . Prototype ID Bank 5 | . 3 . . . . . 2 . . . . . . . . . . . . . . . . . . . . . . . . Open Door 3 | . . . . 1 . . . 1 . . . . . . . . . . . . . . . . 1 . . . . . . Branch Access Points 1 | . 1 . . . . . . . . . . . . . . . . . . . . . . . . . . . . . . Emergency Access Points 7 | . . . . . . 1 2 . . . . . . 1 . 1 . . . 1 . 1 . . . . . . . . . Unreport Threat 7 | . . . . . 1 . 1 . 1 . . . 1 . . . . . . . 2 . 1 . . . . . . . . Locate Traps 4 | . 1 . . . . . . . . . . . 1 . . . . . . . . . 1 . . 1 . . . . . Hauler Manifests 5 | . 1 . . . . . 1 . 1 . . . 1 . 1 . . . . . . . . . . . . . . . . Registered Components 2 | . 1 . . . . . 1 . . . . . . . . . . . . . . . . . . . . . . . . Registered Prototypes 1 | . 1 . . . . . . . . . . . . . . . . . . . . . . . . . . . . . . Zone Layout 8 | . 1 . . . 1 . 2 . . . . . 2 . . . . . . . . . . . 1 1 . . . . . Garrison Registry 3 | . . . . . . 1 . . . . . . . . . 1 . . . . . . . . . . . . . 1 . Patrol Navigation 2 | . . . . . . 1 . . . . . . . . . . . . . 1 . . . . . . . . . . . Security Stations 3 | . . . . . . 1 . 1 . . . . . 1 . . . . . . . . . . . . . . . . . Proto ID Catalog 1 | . . . 1 . . . . . . . . . . . . . . . . . . . . . . . . . . . . Fabricator Hacks 2 | . . . . . . . . . . . . . 1 . . . . . . . 1 . . . . . . . . . . Network Status 2 | . . . . . . . . . . . . . 1 . . . . . . . 1 . . . . . . . . . . Repair Station Hacks 24 | . 5 . . . 8 . 2 . 2 . . . 2 . . . . . . . . . 3 . . 2 . . . . . Scan Component 14 | . 3 . . . 5 . 1 . 1 . . . 1 . . . . . . . . . 2 . . 1 . . . . . Repair 10 | . 2 . . . 3 . 1 . 1 . . . 1 . . . . . . . . . 1 . . 1 . . . . . Recycling Unit Hacks 4 | . 1 . . . 1 . . . . . . . 1 . . . . . . . . . . . 1 . . . . . . Retrieve Components 4 | . 1 . . . 1 . . . . . . . 1 . . . . . . . . . . . 1 . . . . . . Scanalyzer 2 | . . . . . . . 1 . . . . . . . . . . . . . . . . . . 1 . . . . . Insert Component 2 | . . . . . . . 1 . . . . . . . . . . . . . . . . . . 1 . . . . . Garrison Access Hacks 22 | . . . . . 1 . 2 . . . 2 . 2 . 2 . 2 . 2 . 2 . 2 . 1 . 2 . 2 . . Unlock Access 11 | . . . . . 1 . 1 . . . 1 . 1 . 1 . 1 . 1 . 1 . 1 . . . 1 . 1 . . Seal Access 1 | . . . . . . . . . . . . . . . . . . . . . . . . . 1 . . . . . . Coupler Status 10 | . . . . . . . 1 . . . 1 . 1 . 1 . 1 . 1 . 1 . 1 . . . 1 . 1 . . Unauthorized Hacks 16 | . . . . . . 1 6 . 1 . 1 . 3 . . . . . . . 1 . 1 . 1 1 . . . . . Terminals 10 | . . . . . . 1 6 . . . . . 1 . . . . . . . . . . . 1 1 . . . . . Track 1 | . . . . . . . . . . . . . . . . . . . . . . . . . . 1 . . . . . Botnet 4 | . . . . . . 1 1 . . . . . 1 . . . . . . . . . . . 1 . . . . . . Operators 2 | . . . . . . . 2 . . . . . . . . . . . . . . . . . . . . . . . . Skim 3 | . . . . . . . 3 . . . . . . . . . . . . . . . . . . . . . . . . Fabricators 2 | . . . . . . . . . . . . . 1 . . . . . . . 1 . . . . . . . . . . Haulers 2 | . . . . . . . . . . . . . 1 . . . . . . . 1 . . . . . . . . . . Repair Stations 3 | . . . . . . . . . 1 . 1 . . . . . . . . . . . 1 . . . . . . . . Mechanics 3 | . . . . . . . . . 1 . 1 . . . . . . . . . . . 1 . . . . . . . . Recycling Units . | . . . . . . . . . . . . . . . . . . . . . . . . . . . . . . . . Scanalyzers . | . . . . . . . . . . . . . . . . . . . . . . . . . . . . . . . . Garrison Access 1 | . . . . . . . . . . . . . 1 . . . . . . . . . . . . . . . . . . Restock 1 | . . . . . . . . . . . . . 1 . . . . . . . . . . . . . . . . . . Data Cores Recovered 2 | . 1 . . . . . . . . . . . . . . . . . . . . . . . 1 . . . . . . Used 2 | . 1 . . . . . . . . . . . . . . . . . . . . . . . 1 . . . . . . Hacking Detections 107 | . 7 . . . 7 4 11 3 4 . 3 2 11 3 3 2 1 2 . 2 4 3 7 3 7 11 1 1 2 3 . Full Trace Events 9 | . . . . . . 1 . 1 . . . 1 . 1 . 1 . . . . 2 . . 1 . . 1 . . . . Feedback Events . | . . . . . . . . . . . . . . . . . . . . . . . . . . . . . . . . Feedback Blocked . | . . . . . . . . . . . . . . . . . . . . . . . . . . . . . . . . Robot Schematics Acquired . | . . . . . . . . . . . . . . . . . . . . . . . . . . . . . . . . Robots Built . | . . . . . . . . . . . . . . . . . . . . . . . . . . . . . . . . Authchips . | . . . . . . . . . . . . . . . . . . . . . . . . . . . . . . . . Time . | . . . . . . . . . . . . . . . . . . . . . . . . . . . . . . . . Total Robot Build Rating . | . . . . . . . . . . . . . . . . . . . . . . . . . . . . . . . . Part Schematics Acquired . | . . . . . . . . . . . . . . . . . . . . . . . . . . . . . . . . Parts Built . | . . . . . . . . . . . . . . . . . . . . . . . . . . . . . . . . Authchips . | . . . . . . . . . . . . . . . . . . . . . . . . . . . . . . . . Time . | . . . . . . . . . . . . . . . . . . . . . . . . . . . . . . . . Total Part Build Rating . | . . . . . . . . . . . . . . . . . . . . . . . . . . . . . . . . Parts Repaired 10 | . 2 . . . 3 . 1 . 1 . . . 1 . . . . . . . . . 1 . . 1 . . . . . Time 359 | . 52 . . . 129 . 38 . 19 . . . 25 . . . . . . . . . 22 . . 74 . . . . . Parts Recycled . | . . . . . . . . . . . . . . . . . . . . . . . . . . . . . . . . Recycled Matter . | . . . . . . . . . . . . . . . . . . . . . . . . . . . . . . . . Retrieved Matter . | . . . . . . . . . . . . . . . . . . . . . . . . . . . . . . . . Retrieved Components 13 | . 4 . . . 3 . . . . . . . 3 . . . . . . . . . . . 3 . . . . . . Parts Scanalyzed 1 | . . . . . . . 1 . . . . . . . . . . . . . . . . . . . . . . . . Part Schematics Acquired . | . . . . . . . . . . . . . . . . . . . . . . . . . . . . . . . . Parts Damaged 1 | . . . . . . . 1 . . . . . . . . . . . . . . . . . . . . . . . . Bothacking | -11 -10 -10 -10 -9 -8 -8 -8 -8 -7 -7 -7 -7 -7 -7 -6 -6 -6 -6 -5 -5 -4 -4 -4 -4 -3 -3 -2 -2 -1 -1 -1 ------------ Run | Yrd Mat Min Exi Min Mat Gar Mat Gar Fac Was Fac Gar Fac Gar Fac Gar Fac Gar Fac Gar Fac Gar Fac Gar Res Qua Res Gar Acc Gar Acc Used RIF Installer 12 | . . . . . . 2 . 1 . . . 1 . 1 . 1 . 1 . 1 . 1 . 1 . . . 1 . 1 . Coupler Efficiency 1 | . . . . . . . . . . . . . . . . . . 1 . . . . . . . . . . . . . Hotswap 1 | . . . . . . . . . . . . . . . . . . . . . . . . . . . . 1 . . . Command Fork 1 | . . . . . . . . . . . . . . . . . . . . . . 1 . . . . . . . . . Signal Jammer 1 | . . . . . . . . . . . . . . . . . . . . . . . . 1 . . . . . . . Watcher Feeds 1 | . . . . . . . . 1 . . . . . . . . . . . . . . . . . . . . . . . Alert ID Control 1 | . . . . . . . . . . . . . . . . . . . . . . . . . . . . . . 1 . Structural Interface 1 | . . . . . . 1 . . . . . . . . . . . . . . . . . . . . . . . . . Autooverride 1 | . . . . . . . . . . . . . . 1 . . . . . . . . . . . . . . . . . Autoassimilate 2 | . . . . . . . . . . . . 1 . . . 1 . . . . . . . . . . . . . . . Crosswire 1 | . . . . . . . . . . . . . . . . . . . . 1 . . . . . . . . . . . Robots Hacked 202 | . . . 5 . . . 1 5 1 . . 8 3 8 . 9 . 9 1 7 13 13 2 28 11 4 . 15 7 29 23 Non-combat 14 | . . . 3 . . . 1 . 1 . . . 2 . . . . . 1 . 3 . . . 2 . . . 1 . . Combat 188 | . . . 2 . . . . 5 . . . 8 1 8 . 9 . 9 . 7 10 13 2 28 9 4 . 15 6 29 23 Autooverrided 33 | . . . . . . . . . . . . . . 4 . 1 . 1 . . 1 1 . 7 . . . 3 . 5 10 Autoassimilated 65 | . . . . . . . . . . . . 6 . 1 . 2 . 1 . 4 3 4 1 7 5 2 . 10 3 9 7 Robot Hacks Applied 136 | . . . 20 . . . 5 5 1 . . 2 3 3 . 6 . 7 1 3 11 8 1 15 11 3 . 3 4 15 9 parse_system 25 | . . . 20 . . . . . . . . . . . . . . . . . 1 . 1 1 . 1 . 1 . . . drop_inventory 2 | . . . . . . . . . . . . . . . . . . . . . 1 . . . . . . . 1 . . check_alert 1 | . . . . . . . . . . . . . . . . . . . . . . . . . 1 . . . . . . purge_threat 8 | . . . . . . . 2 . . . . . . . . . . . . . 2 . . . 4 . . . . . . locate_traps 2 | . . . . . . . 1 . . . . . . . . . . . . . 1 . . . . . . . . . . reprogram_traps 2 | . . . . . . . 1 . . . . . . . . . . . . . . . . . 1 . . . . . . block_reporting 3 | . . . . . . . 1 . . . . . 1 . . . . . . . . . . . 1 . . . . . . map_route 1 | . . . . . . . . . . . . . . . . . . . . . 1 . . . . . . . . . . find_garrison 1 | . . . . . . . . . . . . . . . . . . . . . 1 . . . . . . . . . . overload_power 1 | . . . . . . . . . . . . . . . . . . . . 1 . . . . . . . . . . . amplify_resonance 20 | . . . . . . . . 1 . . . . . 2 . 4 . 2 . . 1 3 . 3 1 . . . 1 1 1 go_dormant 1 | . . . . . . . . . . . . . . . . . . . . . . . . . . 1 . . . . . overwrite_iff 9 | . . . . . . . . 2 . . . 1 . 1 . . . 2 . . . 2 . . . . . . . 1 . formatsys_low 3 | . . . . . . . . . 1 . . . 1 . . . . . 1 . . . . . . . . . . . . formatsys_high 57 | . . . . . . . . 2 . . . 1 1 . . 2 . 3 . 2 3 3 . 11 3 1 . 2 2 13 8 Relay Couplers Released 169 | . . . . . . 13 . 12 . . . 17 4 8 . 14 . 8 . 18 . 15 4 15 . 3 . 20 . 18 . Machine Destruction 162 | . . . . . . 13 . 12 . . . 17 1 8 . 14 . 8 . 18 . 15 . 15 . 3 . 20 . 18 . Programmers 7 | . . . . . . . . . . . . . 3 . . . . . . . . . 4 . . . . . . . . Attached 69 | . . . . . . . 1 4 1 . . 3 2 2 . 5 . 1 1 2 2 5 . 8 2 1 . 6 2 10 11 Crosswired 29 | . . . . . . . . . . . . . . . . . . . . 5 . 4 . 5 . . . 7 . 8 . Fabnet Peak Effective % . | . . . . . . . . . . . . . . . . . . . . . . . . . . . . . . . . Robots Rewired 16 | . . . . . . 3 . 3 . . . . . . . . . . . 3 . 2 . 1 . . . 3 . 1 . Allies Hacked 12 | . . . . . . 1 . . 1 . . . 1 . . . . . . . 1 . . . 1 . . . . 2 5 Hacks Repelled . | . . . . . . . . . . . . . . . . . . . . . . . . . . . . . . . . Allies | -11 -10 -10 -10 -9 -8 -8 -8 -8 -7 -7 -7 -7 -7 -7 -6 -6 -6 -6 -5 -5 -4 -4 -4 -4 -3 -3 -2 -2 -1 -1 -1 -------- Run | Yrd Mat Min Exi Min Mat Gar Mat Gar Fac Was Fac Gar Fac Gar Fac Gar Fac Gar Fac Gar Fac Gar Fac Gar Res Qua Res Gar Acc Gar Acc Total Allies 198 | . . 4 . 1 . 3 . 7 1 . . 10 2 6 . 7 . 7 1 11 7 12 1 27 9 3 . 20 6 31 22 Largest Group 16 | . . 3 2 1 . 3 . 2 2 . . 3 3 2 . 4 2 2 1 6 8 4 4 8 11 2 2 12 16 16 15 Highest-Rated Group 1140 | . . 47 47 31 . 72 . 56 56 . . 260 260 32 . 230 103 103 14 338 426 332 332 524 683 199 199 789 1090 1140 1004 Highest-Rated Ally 219 | . . 31 31 31 . 24 . 31 31 . . 95 95 16 . 95 62 62 14 80 80 119 119 119 119 152 152 152 219 219 116 Total Orders 6 | . . . . . . . . . 1 . . . 1 . . . . . 1 . . . . 1 . 2 . . . . . STAY 2 | . . . . . . . . . . . . . . . . . . . . . . . . 1 . 1 . . . . . FOLLOW 1 | . . . . . . . . . . . . . . . . . . . . . . . . . . 1 . . . . . AID 3 | . . . . . . . . . 1 . . . 1 . . . . . 1 . . . . . . . . . . . . Ally Attacks 1068 | . . 19 . 6 . 14 . 11 . . . 34 19 29 . 37 . 35 . 54 99 28 40 102 59 1 . 99 34 157 191 Total Damage 35893 | . . 171 . 75 . 282 . 267 . . . 1036 778 420 . 1320 . 1092 . 1962 2616 969 1810 3254 1933 16 . 4319 1023 6695 5855 Kills 199 | . . 4 . 1 . 3 . 1 . . . 10 4 3 . 11 . 10 . 12 18 5 14 14 9 1 . 22 6 22 29 Allies Corrupted 17 | . . . . . . . . . 1 . . . . . . . . . . 1 2 . . 1 1 . . . . 6 5 Allies Melted 4 | . . . . . . . . 1 . . . . . . . . . . . . . 1 . . . . . 1 . 1 . Intel | -11 -10 -10 -10 -9 -8 -8 -8 -8 -7 -7 -7 -7 -7 -7 -6 -6 -6 -6 -5 -5 -4 -4 -4 -4 -3 -3 -2 -2 -1 -1 -1 ------- Run | Yrd Mat Min Exi Min Mat Gar Mat Gar Fac Was Fac Gar Fac Gar Fac Gar Fac Gar Fac Gar Fac Gar Fac Gar Res Qua Res Gar Acc Gar Acc Active Infowar (turns) 12333 | . . . . 610 . . . . 491 117 227 2 2209 7 288 10 66 . 90 . 842 2 861 . 2068 2016 52 1162 394 223 596 Sensors 9185 | . . . . . . . . . 491 117 227 2 2209 7 288 10 66 . 90 . 842 2 861 . 1653 1549 52 2 188 . 529 Seismic 610 | . . . . 610 . . . . . . . . . . . . . . . . . . . . . . . . . . . T.N.C. 6074 | . . . . . . . . . . . . . . . . . . . . . . . . . 1946 2016 52 1162 394 223 281 Robot Analysis Total 1 | . 1 . . . . . . . . . . . . . . . . . . . . . . . . . . . . . . Derelict Logs Recovered 2 | . . 1 . 1 . . . . . . . . . . . . . . . . . . . . . . . . . . . Drone Launches . | . . . . . . . . . . . . . . . . . . . . . . . . . . . . . . . . Drone Recoveries . | . . . . . . . . . . . . . . . . . . . . . . . . . . . . . . . . Exploration | -11 -10 -10 -10 -9 -8 -8 -8 -8 -7 -7 -7 -7 -7 -7 -6 -6 -6 -6 -5 -5 -4 -4 -4 -4 -3 -3 -2 -2 -1 -1 -1 ------------- Run | Yrd Mat Min Exi Min Mat Gar Mat Gar Fac Was Fac Gar Fac Gar Fac Gar Fac Gar Fac Gar Fac Gar Fac Gar Res Qua Res Gar Acc Gar Acc Turns Passed 40858 | 4 2812 1644 1731 1596 1576 1494 2843 1654 696 756 229 1344 2450 1260 288 775 68 1733 153 1119 923 1432 905 1294 2068 2016 52 1162 394 1547 2840 Spaces Moved 17875 | 3 987 617 703 533 495 547 920 619 389 417 134 561 1350 604 173 398 41 610 76 608 528 708 509 652 1127 1036 33 690 209 697 901 Core 140 | . . . . . . . . . . . . . . . . . . . . . . . . . . . . . . . 140 Treads 15352 | . . 548 703 533 495 547 920 619 389 417 134 429 911 282 173 398 41 610 76 608 528 708 509 652 1127 1036 33 690 209 697 330 Legs 1490 | 3 987 69 . . . . . . . . . . . . . . . . . . . . . . . . . . . . 431 Wheels 893 | . . . . . . . . . . . . 132 439 322 . . . . . . . . . . . . . . . . . Hover . | . . . . . . . . . . . . . . . . . . . . . . . . . . . . . . . . Flight . | . . . . . . . . . . . . . . . . . . . . . . . . . . . . . . . . Fastest Speed 50 | 120 120 240 240 240 225 225 225 235 156 156 160 160 160 160 160 152 160 160 155 155 160 155 155 155 150 150 153 153 153 150 50 Average Speed 185 | 120 257 242 240 285 238 226 226 235 156 157 160 179 160 160 160 158 160 217 159 156 160 157 155 155 157 152 153 155 153 185 128 Slowest Speed 700 | 120 260 260 240 320 320 230 235 235 156 160 160 243 160 240 160 160 160 232 160 160 160 238 155 155 230 237 153 233 153 238 700 Overloaded Moves . | . . . . . . . . . . . . . . . . . . . . . . . . . . . . . . . . Propulsion Burnouts . | . . . . . . . . . . . . . . . . . . . . . . . . . . . . . . . . Robots Hopped . | . . . . . . . . . . . . . . . . . . . . . . . . . . . . . . . . Potential Cave-ins 4 | . . . . . . . 2 . . . . . . . . . . . . . . . 2 . . . . . . . . Cave-ins Triggered . | . . . . . . . . . . . . . . . . . . . . . . . . . . . . . . . . Teleports 1 | . . . . . . . . . . . . . . . . . . . . . . . . . . 1 . . . . . Time Travels 1 | . . . . . . . . . . . . . . . . . . . . . . . . . . . . . . . 1 Exploration Rate (%) 56 | 2 99 100 89 91 37 80 81 87 12 96 5 94 50 90 4 53 2 87 2 89 20 84 14 91 40 94 2 93 10 88 14 Regions Visited 31 Branch Regions 4 Pre-discovered Areas 1 | . . . 1 . . . . . . . . . . . . . . . . . . . . . . . . . . . . Known Exits Taken 14 | . 1 . . . 1 . 1 . . . 1 . 1 . 1 . 1 . 1 . 1 . 1 . 1 1 1 . 1 . . Unknown Exits Taken 4 | 1 . 1 1 1 . . . . . . . . . . . . . . . . . . . . . . . . . . . Scrap Searched 2 | . . 1 . 1 . . . . . . . . . . . . . . . . . . . . . . . . . . . Spaces Dug 366 | . . . . . 4 72 25 20 4 . 1 6 36 . 1 16 . 34 1 67 5 4 19 . 36 11 . 3 1 . . Terrain Destroyed 1025 | . 6 30 . . 10 106 110 51 11 . 1 49 41 33 1 42 . 183 1 85 8 28 22 9 55 26 . 4 1 8 104 Melee 28 | . . . . . 3 . . 1 1 . . . 23 . . . . . . . . . . . . . . . . . . Projectile 271 | . . . . . 7 . 34 1 10 . 1 15 18 6 1 4 . 8 1 7 8 8 22 9 43 26 . 4 1 8 29 AOE 726 | . 6 30 . . . 106 76 49 . . . 34 . 27 . 38 . 175 . 78 . 20 . . 12 . . . . . 75 Terrain Rammed . | . . . . . . . . . . . . . . . . . . . . . . . . . . . . . . . . Walls Destroyed . | . . . . . . . . . . . . . . . . . . . . . . . . . . . . . . . . Machines Disabled . | . . . . . . . . . . . . . . . . . . . . . . . . . . . . . . . . Actions | -11 -10 -10 -10 -9 -8 -8 -8 -8 -7 -7 -7 -7 -7 -7 -6 -6 -6 -6 -5 -5 -4 -4 -4 -4 -3 -3 -2 -2 -1 -1 -1 --------- Run | Yrd Mat Min Exi Min Mat Gar Mat Gar Fac Was Fac Gar Fac Gar Fac Gar Fac Gar Fac Gar Fac Gar Fac Gar Res Qua Res Gar Acc Gar Acc Total 23794 | 3 1140 698 738 591 767 708 1539 740 452 490 144 803 1545 801 181 511 42 900 106 724 578 946 595 867 1317 1367 34 783 281 913 2490 Wait 2976 | . 56 24 . 27 111 19 489 15 20 . . 41 58 19 . 29 . 113 14 22 . 79 45 71 4 133 . 17 62 74 1434 Move 17851 | 2 986 616 702 532 495 546 920 618 389 416 134 560 1350 603 173 397 41 609 75 606 528 707 509 651 1126 1035 33 689 208 695 900 Hop . | . . . . . . . . . . . . . . . . . . . . . . . . . . . . . . . . Pick Up 271 | . 19 5 2 10 25 6 8 8 6 9 1 12 12 13 2 14 . 13 1 13 2 12 3 14 11 15 . 12 1 12 10 Fast Attach 139 | . 3 1 . 1 6 1 5 2 . 5 . 10 5 9 1 1 . 5 . 4 . 4 . 8 8 20 . 5 . 9 26 Attach 138 | . 2 5 . . 3 2 1 6 5 1 . 18 11 11 2 5 . 10 5 2 3 3 2 3 7 5 1 3 . 9 13 Detach 91 | . . . . 1 . . 1 1 2 . . 20 7 12 1 1 . 5 3 . . 5 . 4 7 1 . 5 . 5 10 Swap 310 | 1 4 9 1 4 21 18 18 17 9 5 3 8 11 5 . 14 1 32 3 16 7 17 4 9 21 31 . 8 4 5 4 Drop 277 | . 4 3 3 6 31 5 13 7 . 19 2 19 15 20 . 12 . 9 1 14 . 12 2 12 14 22 . 13 . 6 13 Fire 1516 | . 56 33 . 6 71 67 79 51 18 33 2 76 43 93 2 38 . 102 4 45 38 105 29 94 118 104 . 29 6 96 78 Melee 73 | . . . 22 . 3 1 . 2 3 . . 6 33 3 . . . . . . . . . . . . . . . . . Ram . | . . . . . . . . . . . . . . . . . . . . . . . . . . . . . . . . Kick 12 | . 10 1 . . . . . . . . . . . . . . . . . . . . . . . . . . . . 1 Crush 23 | . . 1 . 4 1 . 5 1 . . 2 2 . . . . . 1 . 2 . . 1 1 1 1 . . . . . Escape Stasis 72 | . . . . . . 10 . 12 . . . 31 . 13 . . . . . . . 2 . . . . . 2 . 2 . Rewire 45 | . . . 8 . . 33 . . . 2 . . . . . . . 1 . . . . . . . . . . . . 1 Trap . | . . . . . . . . . . . . . . . . . . . . . . . . . . . . . . . . Miscellaneous . | . . . . . . . . . . . . . . . . . . . . . . . . . . . . . . . . Route ------- -11/Scrapyard -10/Materials (discovered 6 exits: [*Mat x3] / *Min x2 / [*Sub]) -10/Mines (discovered 4 exits: [*Mat x2] / *Exi / [*Sub]) -10/Exiles -9/Mines -8/Materials (discovered 3 exits: *Fac x2 / Gar) -8/Garrison (discovered 4 exits: *Mat x4) -8/Materials (discovered 3 exits: *Fac x2 / Gar) -8/Garrison (discovered 3 exits: *Fac x3) -7/Factory -7/Waste -7/Factory (discovered 2 exits: *Fac / Gar) -7/Garrison (discovered 3 exits: *Fac x3) -7/Factory (discovered 4 exits: *Fac x3 / Gar) -7/Garrison (discovered 3 exits: *Fac x3) -6/Factory -6/Garrison (discovered 4 exits: Fac x3 / *Fac) -6/Factory -6/Garrison (discovered 3 exits: *Fac x3) -5/Factory -5/Garrison (discovered 3 exits: *Fac x3) -4/Factory (discovered 2 exits: *Upp / Gar) -4/Garrison (discovered 3 exits: *Res x2 / *Fac) -4/Factory -4/Garrison (discovered 3 exits: *Res x3) -3/Research (discovered 2 exits: *Res / *Qua) -3/Quarantine -2/Research -2/Garrison (discovered 3 exits: *Acc x3) -1/Access -1/Garrison (discovered 3 exits: *Acc x3) -1/Access To Epsilon Eridani History --------- Turn | Location | Event 3 | -11/Scrapyard | Discovered new exit (range 3) 5 | -11/Scrapyard | Entered Materials 270 | -10/Materials | Discovered new exit (range 14) 304 | -10/Materials | Discovered new exit (range 6) 313 | -10/Materials | Build established: Mutant 379 | -10/Materials | Discovered new exit (range 6) 449 | -10/Materials | Central database locked down 1189 | -10/Materials | Discovered new exit (range 15) 1786 | -10/Materials | Identified exit to Mines 2164 | -10/Materials | Discovered new exit (range 4) 2349 | -10/Materials | Discovered new exit (range 5) 2495 | -10/Materials | Repaired Assault Rifle 2522 | -10/Materials | Repaired Aluminum Leg 2817 | -10/Materials | Entered Mines 2852 | -10/Mines | Met a Derelict bent on vengeance 2901 | -10/Mines | Discovered new exit (range 10) 3028 | -10/Mines | Assembled infested the area 3060 | -10/Mines | Core integrity fell below 50% 3092 | -10/Mines | Destroyed 9 combat bots 3094 | -10/Mines | Lost 4 parts (1n1u2w) 3266 | -10/Mines | Discovered new exit (range 6) 3523 | -10/Mines | A weapon hastily lodged in a ceiling crevice suddenly fell to the ground 3570 | -10/Mines | Discovered new exit (range 2) 3648 | -10/Mines | Assisted by bots powering up and referring to "LRC-V3" 3787 | -10/Mines | Deemed a non-threat by the Exiles lab entrance 3790 | -10/Mines | Discovered new exit (range 5) 4143 | -10/Mines | Learned Materials emergency access door positions 4151 | -10/Mines | Escorted by a lone wolf Derelict 4461 | -10/Mines | Entered Exiles 4461 | -10/Exiles | Accompanied by 2 allies 4517 | -10/Exiles | Met 8R-AWN 4560 | -10/Exiles | Met EX-HEX 4629 | -10/Exiles | Met EX-BIN 4658 | -10/Exiles | Aligned with FarCom system 4661 | -10/Exiles | Given EX-Vault access code 4716 | -10/Exiles | Opened EX-Vault 4735 | -10/Exiles | Found Modified TNC 4789 | -10/Exiles | Warned to stay clear of 0b10 Research branches 4861 | -10/Exiles | Met EX-DEC 4870 | -10/Exiles | Learned location of Zion (-7) 4991 | -10/Exiles | Visited The Gauntlet 5956 | -10/Exiles | Found Chronowheel 6161 | -10/Exiles | Discovered new exit (range 12) 6192 | -10/Exiles | Stole two prototypes: Modified TNC, Chronowheel 6192 | -10/Exiles | Entered Mines 6192 | -9/Mines | Accompanied by 1 ally 6342 | -9/Mines | Discovered new exit (range 5) 6644 | -9/Mines | Learned location of 1 exit from Materials 6741 | -9/Mines | Met a Derelict shopkeep closing up shop 7265 | -9/Mines | Received a Mining Laser from a helpful Derelict 7428 | -9/Mines | Found a damaged Exp. Sensor Array with a note attached 7435 | -9/Mines | Found Prototype Device 7788 | -9/Mines | Entered Materials 7788 | -8/Materials | Evolved 4 slots: Propulsion x1, Utility x3 7789 | -8/Materials | Identified exit to Factory 7914 | -8/Materials | Repaired Cmb. Airjet 7947 | -8/Materials | Repaired Lgt. Armor Plating 8718 | -8/Materials | Garrison activated, responded to threat 8781 | -8/Materials | Discovered exit to Factory (range 16) 9028 | -8/Materials | Garrison activated, responded to threat 9328 | -8/Materials | Repaired Broken Adv. Treads 9364 | -8/Materials | Identified exit to Garrison 9364 | -8/Materials | Entered Garrison 9404 | -8/Garrison | Learned Materials security intel 9454 | -8/Garrison | Triggered checkpoint 9488 | -8/Garrison | Garrison Relay disabled 9596 | -8/Garrison | Triggered checkpoint 9629 | -8/Garrison | Triggered checkpoint 9648 | -8/Garrison | Triggered checkpoint 9811 | -8/Garrison | Triggered checkpoint 9845 | -8/Garrison | Garrison Relay disabled 9949 | -8/Garrison | Discovered new exit (range 10) 10193 | -8/Garrison | Installed Relay Interface Framework 10209 | -8/Garrison | Discovered new exit (range 12) 10224 | -8/Garrison | Triggered checkpoint 10264 | -8/Garrison | Discovered new exit (range 3) 10398 | -8/Garrison | Triggered checkpoint 10455 | -8/Garrison | Discovered new exit (range 78) 10455 | -8/Garrison | Discovered new exit (range 50) 10455 | -8/Garrison | Discovered new exit (range 7) 10455 | -8/Garrison | Discovered new exit (range 15) 10468 | -8/Garrison | Garrison Relay disabled 10493 | -8/Garrison | Build established: Bothacker-Mutant 10787 | -8/Garrison | Expanded RIF knowledge: Structural Interface 10858 | -8/Garrison | Entered Materials 11303 | -8/Materials | Discovered exit to Factory (range 10) 11640 | -8/Materials | Repaired Adv. Treads 12003 | -8/Materials | Identified Exp. Sensor Array 12316 | -8/Materials | Discovered exit to Factory (range 9) 13701 | -8/Materials | Identified exit to Garrison 13701 | -8/Materials | Entered Garrison 13865 | -8/Garrison | Triggered checkpoint 13990 | -8/Garrison | Garrison Relay disabled 14040 | -8/Garrison | Triggered checkpoint 14356 | -8/Garrison | Garrison Relay disabled 14426 | -8/Garrison | Discovered exit to Factory (range 10) 14469 | -8/Garrison | Expanded RIF knowledge: Watcher Feeds 14739 | -8/Garrison | Triggered checkpoint 14838 | -8/Garrison | Discovered exit to Factory (range 13) 14933 | -8/Garrison | Triggered checkpoint 14977 | -8/Garrison | Garrison Relay disabled 15062 | -8/Garrison | Triggered checkpoint 15219 | -8/Garrison | Triggered checkpoint 15294 | -8/Garrison | Discovered exit to Factory (range 8) 15308 | -8/Garrison | Learned Factory security intel 15355 | -8/Garrison | Entered Factory 15355 | -7/Factory | Accompanied by 2 allies 15355 | -7/Factory | Evolved 2 slots: Propulsion x1, Utility x1 15357 | -7/Factory | FarCom data flow suspended 15606 | -7/Factory | Repaired Hrd. Medium Armor Plating 15917 | -7/Factory | Discovered new exit (range 15) 15969 | -7/Factory | Identified exit to Storage 16051 | -7/Factory | Sucked down chute 16051 | -7/Factory | Entered Waste 16051 | -7/Waste | The area was eerily silent 16359 | -7/Waste | Discovered new exit (range 13) 16376 | -7/Waste | Identified exit to Factory 16807 | -7/Waste | Entered Factory 16927 | -7/Factory | Discovered new exit (range 20) 17036 | -7/Factory | Identified exit to Garrison 17036 | -7/Factory | Entered Garrison 17042 | -7/Garrison | Triggered checkpoint 17122 | -7/Garrison | Triggered checkpoint 17185 | -7/Garrison | Expanded RIF knowledge: Autoassimilate 17232 | -7/Garrison | Triggered checkpoint 17250 | -7/Garrison | Triggered checkpoint 17290 | -7/Garrison | Lost 3 allies 17416 | -7/Garrison | Discovered new exit (range 10) 17487 | -7/Garrison | Garrison Relay disabled 17612 | -7/Garrison | Spotted B-75 Beast 17617 | -7/Garrison | Autoassimilated Beast 4a with RIF 17695 | -7/Garrison | Garrison Relay disabled 17874 | -7/Garrison | Triggered checkpoint 17980 | -7/Garrison | Triggered checkpoint 18000 | -7/Garrison | Discovered new exit (range 13) 18084 | -7/Garrison | Triggered checkpoint 18118 | -7/Garrison | Garrison Relay disabled 18283 | -7/Garrison | Triggered checkpoint 18303 | -7/Garrison | Garrison Relay disabled 18347 | -7/Garrison | Discovered new exit (range 15) 18367 | -7/Garrison | Found embedded Infiltrators 18377 | -7/Garrison | Identified exit to Factory 18380 | -7/Garrison | Entered Factory 18380 | -7/Factory | Accompanied by 3 allies 18858 | -7/Factory | Garrison activated, responded to threat 19212 | -7/Factory | Repaired Imp. Heavy Armor Plating 19369 | -7/Factory | Discovered new exit (range 10) 19384 | -7/Factory | Identified exit to Factory 19544 | -7/Factory | Discovered exit to Factory (range 15) 20280 | -7/Factory | Discovered exit to Factory (range 5) 20830 | -7/Factory | Identified exit to Garrison 20830 | -7/Factory | Entered Garrison 20864 | -7/Garrison | Expanded RIF knowledge: Autooverride 21042 | -7/Garrison | Triggered checkpoint 21098 | -7/Garrison | Garrison Relay disabled 21158 | -7/Garrison | Triggered checkpoint 21274 | -7/Garrison | Discovered exit to Factory (range 15) 21373 | -7/Garrison | Learned Factory security intel 21476 | -7/Garrison | Triggered checkpoint 21586 | -7/Garrison | Discovered exit to Factory (range 15) 21650 | -7/Garrison | Triggered checkpoint 21688 | -7/Garrison | Garrison Relay disabled 21762 | -7/Garrison | Triggered checkpoint 21778 | -7/Garrison | Triggered checkpoint 22030 | -7/Garrison | Discovered exit to Factory (range 10) 22090 | -7/Garrison | Entered Factory 22090 | -6/Factory | Evolved 2 slots: Utility x2 22378 | -6/Factory | Identified exit to Garrison 22378 | -6/Factory | Entered Garrison 22412 | -6/Garrison | Triggered checkpoint 22488 | -6/Garrison | Expanded RIF knowledge: Autoassimilate 22545 | -6/Garrison | Garrison Relay disabled 22562 | -6/Garrison | Triggered checkpoint 22566 | -6/Garrison | Discovered new exit (range 13) 22645 | -6/Garrison | Triggered checkpoint 22731 | -6/Garrison | Discovered new exit (range 23) 22731 | -6/Garrison | Discovered new exit (range 32) 22731 | -6/Garrison | Discovered new exit (range 49) 22731 | -6/Garrison | Discovered new exit (range 59) 22736 | -6/Garrison | Triggered checkpoint 22767 | -6/Garrison | Garrison Relay disabled 22797 | -6/Garrison | Build established: Botlord-Mutant 22835 | -6/Garrison | Garrison Relay disabled 22859 | -6/Garrison | Found embedded Infiltrators 22896 | -6/Garrison | Triggered checkpoint 23064 | -6/Garrison | Triggered checkpoint 23151 | -6/Garrison | Identified exit to Factory 23153 | -6/Garrison | Entered Factory 23153 | -6/Factory | Accompanied by 2 allies 23221 | -6/Factory | Identified exit to Garrison 23221 | -6/Factory | Entered Garrison 23221 | -6/Garrison | Accompanied by 2 allies 23273 | -6/Garrison | Expanded RIF knowledge: Coupler Efficiency 23301 | -6/Garrison | Triggered checkpoint 23383 | -6/Garrison | Triggered checkpoint 23412 | -6/Garrison | Garrison Relay disabled 23656 | -6/Garrison | Triggered checkpoint 23662 | -6/Garrison | Triggered checkpoint 23728 | -6/Garrison | Spotted B-75 Beast 23728 | -6/Garrison | Spotted B-75 Beast 23772 | -6/Garrison | Destroyed B-75 Beast 23807 | -6/Garrison | Destroyed B-75 Beast 23843 | -6/Garrison | Found Quantum Capacitor 23897 | -6/Garrison | Discovered new exit (range 5) 23906 | -6/Garrison | Identified exit to Factory 23917 | -6/Garrison | Spotted Striker 23917 | -6/Garrison | Spotted Striker 24015 | -6/Garrison | Triggered checkpoint 24051 | -6/Garrison | Triggered checkpoint 24471 | -6/Garrison | Discovered exit to Factory (range 13) 24520 | -6/Garrison | Triggered checkpoint 24683 | -6/Garrison | Triggered checkpoint 24760 | -6/Garrison | Discovered exit to Factory (range 15) 24954 | -6/Garrison | Entered Factory 24954 | -5/Factory | Evolved 2 slots: Propulsion x2 25091 | -5/Factory | Identified exit to Garrison 25107 | -5/Factory | Entered Garrison 25107 | -5/Garrison | Accompanied by 1 ally 25145 | -5/Garrison | Triggered checkpoint 25187 | -5/Garrison | Destroyed 8 combat bots 25239 | -5/Garrison | Garrison Relay disabled 25323 | -5/Garrison | Spotted B-75 Beast 25338 | -5/Garrison | Allies destroyed B-75 Beast 25359 | -5/Garrison | Triggered checkpoint 25378 | -5/Garrison | Lost 3 allies 25483 | -5/Garrison | Garrison Relay disabled 25520 | -5/Garrison | Discovered new exit (range 15) 25530 | -5/Garrison | Garrison Relay disabled 25563 | -5/Garrison | Triggered checkpoint 25718 | -5/Garrison | Expanded RIF knowledge: Crosswire 25741 | -5/Garrison | Discovered new exit (range 11) 25767 | -5/Garrison | Garrison Relay disabled 25769 | -5/Garrison | Triggered checkpoint 25772 | -5/Garrison | P-70 Sage assimilated allied Sentinel 6c 25804 | -5/Garrison | Found embedded Infiltrators 25939 | -5/Garrison | Triggered checkpoint 25992 | -5/Garrison | Spotted B-75 Beast 26002 | -5/Garrison | Allies destroyed B-75 Beast 26100 | -5/Garrison | Garrison Relay disabled 26145 | -5/Garrison | Triggered checkpoint 26150 | -5/Garrison | Discovered new exit (range 10) 26188 | -5/Garrison | Spotted Executioner 26188 | -5/Garrison | Spotted Executioner 26206 | -5/Garrison | Identified exit to Factory 26226 | -5/Garrison | Entered Factory 26226 | -4/Factory | Accompanied by 6 allies 26226 | -4/Factory | Evolved 2 slots: Power x1, Utility x1 26476 | -4/Factory | First assault squad dispatched 26597 | -4/Factory | Discovered new exit (range 5) 26603 | -4/Factory | Identified exit to Upper Caves 27149 | -4/Factory | Identified exit to Garrison 27149 | -4/Factory | Entered Garrison 27179 | -4/Garrison | Lost 3 allies 27264 | -4/Garrison | Triggered checkpoint 27292 | -4/Garrison | Garrison Relay disabled 27377 | -4/Garrison | Found Relay Coupler [Proto] 27381 | -4/Garrison | Found Relay Coupler [Proto] 27384 | -4/Garrison | Found Relay Coupler [Proto] 27430 | -4/Garrison | Spotted B-86 Titan 27501 | -4/Garrison | Destroyed B-86 Titan 27556 | -4/Garrison | Triggered checkpoint 27566 | -4/Garrison | Triggered checkpoint 27632 | -4/Garrison | Lost 4 allies 27717 | -4/Garrison | Triggered checkpoint 27750 | -4/Garrison | Garrison Relay disabled 27795 | -4/Garrison | Discovered new exit (range 15) 28006 | -4/Garrison | Discovered new exit (range 10) 28069 | -4/Garrison | Triggered checkpoint 28092 | -4/Garrison | Discovered new exit (range 3) 28132 | -4/Garrison | Garrison Relay disabled 28155 | -4/Garrison | Triggered checkpoint 28271 | -4/Garrison | Triggered checkpoint 28309 | -4/Garrison | Rewired Executioner 28312 | -4/Garrison | Rewired Executioner 28351 | -4/Garrison | Expanded RIF knowledge: Command Fork 28395 | -4/Garrison | Garrison Relay disabled 28574 | -4/Garrison | Identified exit to Factory 28581 | -4/Garrison | Entered Factory 28581 | -4/Factory | Accompanied by 4 allies 28799 | -4/Factory | Repaired Hrd. Heavy Armor Plating 28831 | -4/Factory | First assault squad dispatched 28896 | -4/Factory | Garrison activated, responded to threat 29294 | -4/Factory | System corruption reached 10% 29474 | -4/Factory | Spotted B-86 Titan 29486 | -4/Factory | Identified exit to Garrison 29486 | -4/Factory | Entered Garrison 29568 | -4/Garrison | Triggered checkpoint 29593 | -4/Garrison | Expanded RIF knowledge: Signal Jamming 29710 | -4/Garrison | Found Gamma Bomb Array 29714 | -4/Garrison | Found Gamma Bomb Array 29772 | -4/Garrison | Triggered checkpoint 29807 | -4/Garrison | Lost 9 allies 29816 | -4/Garrison | Triggered checkpoint 29953 | -4/Garrison | Discovered new exit (range 10) 30028 | -4/Garrison | Triggered checkpoint 30044 | -4/Garrison | Garrison Relay disabled 30082 | -4/Garrison | Spotted B-86 Titan 30109 | -4/Garrison | Destroyed B-86 Titan 30276 | -4/Garrison | Triggered checkpoint 30353 | -4/Garrison | Discovered new exit (range 13) 30404 | -4/Garrison | Triggered checkpoint 30429 | -4/Garrison | Garrison Relay disabled 30614 | -4/Garrison | Discovered new exit (range 11) 30624 | -4/Garrison | Triggered checkpoint 30648 | -4/Garrison | Garrison Relay disabled 30656 | -4/Garrison | Spotted Executioner 30686 | -4/Garrison | Assimilated Executioner with formatsys_high 30698 | -4/Garrison | Rewired Executioner 30748 | -4/Garrison | Identified exit to Research 30780 | -4/Garrison | Entered Research 30780 | -3/Research | Accompanied by 7 allies 30780 | -3/Research | Evolved 2 slots: Utility x2 31030 | -3/Research | First assault squad dispatched 31061 | -3/Research | Found Fusion Bomb Launcher 31086 | -3/Research | Build established: Botlord-Skirmisher 31168 | -3/Research | Allies destroyed Executioner 31199 | -3/Research | Lost 3 allies 31275 | -3/Research | Discovered new exit (range 11) 31292 | -3/Research | Identified exit to Research 31370 | -3/Research | Spotted B-86 Titan 31376 | -3/Research | Allies destroyed B-86 Titan 31406 | -3/Research | Destroyed Executioner 31413 | -3/Research | Found Exp. Core Analyzer 31523 | -3/Research | P-80 Master assimilated allied Warden 8a 31527 | -3/Research | P-80 Master assimilated allied Sentinel 7i 31559 | -3/Research | System corruption reached 10% 31561 | -3/Research | Lost 3 allies 32836 | -3/Research | Discovered new exit (range 9) 32845 | -3/Research | Identified exit to Quarantine 32848 | -3/Research | Entered Quarantine 32899 | -3/Quarantine | Found Alien Artifact 32900 | -3/Quarantine | Identified Dimensional Node Initializer 32900 | -3/Quarantine | Initialized slip node 32908 | -3/Quarantine | Found Alien Artifact 32948 | -3/Quarantine | Spotted Alpha 7 33382 | -3/Quarantine | Cryocooling Duct disabled 33397 | -3/Quarantine | Ambient heat levels rising (+20) 33397 | -3/Quarantine | Non-combat units ordered to evacuate 33429 | -3/Quarantine | Cryocooling Duct disabled 33444 | -3/Quarantine | Ambient heat levels rising (+20) 33444 | -3/Quarantine | Combat units ordered to evacuate 33544 | -3/Quarantine | Quarantine Guard activated 33630 | -3/Quarantine | Spotted Quarantine Guard 33633 | -3/Quarantine | Spotted Quarantine Guard 33637 | -3/Quarantine | Destroyed Quarantine Guard 33648 | -3/Quarantine | Destroyed Quarantine Guard 33805 | -3/Quarantine | Discovered exit to Research (range 5) 33805 | -3/Quarantine | Spotted Quarantine Guard 33820 | -3/Quarantine | Destroyed Quarantine Guard 33894 | -3/Quarantine | Found Alien Artifact 33938 | -3/Quarantine | Spotted Quarantine Guard 33951 | -3/Quarantine | Destroyed Quarantine Guard 34057 | -3/Quarantine | Spotted Quarantine Guard 34082 | -3/Quarantine | Spotted Quarantine Guard 34090 | -3/Quarantine | Destroyed Quarantine Guard 34093 | -3/Quarantine | Repaired Biometal Heavy Treads? 34100 | -3/Quarantine | Destroyed Quarantine Guard 34164 | -3/Quarantine | Spotted Quarantine Guard 34180 | -3/Quarantine | Destroyed Quarantine Guard 34244 | -3/Quarantine | Spotted Quarantine Guard 34252 | -3/Quarantine | Destroyed Quarantine Guard 34341 | -3/Quarantine | Spotted Quarantine Guard 34351 | -3/Quarantine | Destroyed Quarantine Guard 34401 | -3/Quarantine | Spotted Quarantine Guard 34404 | -3/Quarantine | Spotted Quarantine Guard 34414 | -3/Quarantine | Identified Transdimensional Reconstructor 34414 | -3/Quarantine | Warped through subspace to slip node 34428 | -3/Quarantine | Found Transdimensional Reconstructor 34490 | -3/Quarantine | Assimilated Alpha 7 with formatsys_high 34582 | -3/Quarantine | Destroyed Quarantine Guard 34594 | -3/Quarantine | Destroyed Quarantine Guard 34812 | -3/Quarantine | System corruption reached 30% 34864 | -3/Quarantine | Entered Research 34864 | -2/Research | Accompanied by 2 allies 34864 | -2/Research | Evolved 2 slots: Utility x2 34916 | -2/Research | Identified exit to Garrison 34916 | -2/Research | Entered Garrison 34916 | -2/Garrison | Accompanied by 2 allies 34980 | -2/Garrison | Triggered checkpoint 35017 | -2/Garrison | Found embedded Infiltrators 35033 | -2/Garrison | Garrison Relay disabled 35126 | -2/Garrison | Garrison Relay disabled 35143 | -2/Garrison | Warlord forces raided the area 35184 | -2/Garrison | Spotted B-90 Cyclops 35196 | -2/Garrison | Triggered checkpoint 35198 | -2/Garrison | Allies destroyed B-90 Cyclops 35212 | -2/Garrison | Triggered checkpoint 35222 | -2/Garrison | Build established: Botlord-Mutant 35244 | -2/Garrison | Triggered checkpoint 35246 | -2/Garrison | Lost 4 allies 35284 | -2/Garrison | Discovered new exit (range 12) 35296 | -2/Garrison | Expanded RIF knowledge: Hotswap 35297 | -2/Garrison | Lost 5 allies 35422 | -2/Garrison | Triggered checkpoint 35455 | -2/Garrison | Garrison Relay disabled 35489 | -2/Garrison | Found Relay Coupler [Proto] 35492 | -2/Garrison | Found Relay Coupler [Proto] 35496 | -2/Garrison | Found Relay Coupler [Proto] 35550 | -2/Garrison | Discovered new exit (range 14) 35732 | -2/Garrison | Triggered checkpoint 35759 | -2/Garrison | Garrison Relay disabled 35823 | -2/Garrison | Discovered new exit (range 12) 35838 | -2/Garrison | Identified exit to Access 35922 | -2/Garrison | Triggered checkpoint 35939 | -2/Garrison | Garrison Relay disabled 36078 | -2/Garrison | Entered Access 36078 | -1/Access | Accompanied by 11 allies 36078 | -1/Access | Evolved 2 slots: Weapon x2 36265 | -1/Access | Spotted B-99 Colossus 36271 | -1/Access | Assimilated Colossus 10a with formatsys_high 36296 | -1/Access | Found Exp. Signal Interpreter 36408 | -1/Access | Identified exit to Garrison 36472 | -1/Access | Entered Garrison 36472 | -1/Garrison | Accompanied by 13 allies 36562 | -1/Garrison | Spotted B-99 Colossus 36572 | -1/Garrison | Triggered checkpoint 36578 | -1/Garrison | Triggered checkpoint 36671 | -1/Garrison | Lost 20 allies 36683 | -1/Garrison | Destroyed B-99 Colossus 36731 | -1/Garrison | Lost 4 parts (1p1n2u) 36784 | -1/Garrison | System corruption reached 10% 36848 | -1/Garrison | Triggered checkpoint 36896 | -1/Garrison | Garrison Relay disabled 36924 | -1/Garrison | Build established: Botlord-Tank 36936 | -1/Garrison | Triggered checkpoint 37036 | -1/Garrison | Triggered checkpoint 37059 | -1/Garrison | Triggered checkpoint 37147 | -1/Garrison | Spotted B-90 Cyclops 37169 | -1/Garrison | Rewired B-86 Titan 37184 | -1/Garrison | Allies destroyed B-90 Cyclops 37304 | -1/Garrison | Garrison Relay disabled 37330 | -1/Garrison | Triggered checkpoint 37384 | -1/Garrison | Discovered new exit (range 2) 37386 | -1/Garrison | Identified exit to Access 37430 | -1/Garrison | Expanded RIF knowledge: Alert ID Control 37582 | -1/Garrison | Garrison Relay disabled 37634 | -1/Garrison | Discovered exit to Access (range 10) 37652 | -1/Garrison | Triggered checkpoint 37724 | -1/Garrison | Build established: Botlord-Mutant 37815 | -1/Garrison | Discovered exit to Access (range 37) 37815 | -1/Garrison | Discovered exit to Access (range 55) 37815 | -1/Garrison | Discovered exit to Access (range 75) 37868 | -1/Garrison | Triggered checkpoint 37875 | -1/Garrison | Garrison Relay disabled 37900 | -1/Garrison | Garrison Relay disabled 38019 | -1/Garrison | Entered Access 38019 | -1/Access | Accompanied by 10 allies 38032 | -1/Access | Energy Cycler disabled 38299 | -1/Access | Spotted B-99 Colossus 38312 | -1/Access | Allies destroyed B-99 Colossus 38336 | -1/Access | Found Multirail 38350 | -1/Access | Lost 9 allies 38353 | -1/Access | Build established: Botlord-Skirmisher 38558 | -1/Access | P-80 Master assimilated allied Warden 10k 38611 | -1/Access | Lost 5 allies 38659 | -1/Access | Lost 9 parts (4n3u2w) 38716 | -1/Access | Discovered new exit (range 6) 38869 | -1/Access | Identified Subatomic Replicator 38869 | -1/Access | Used Subatomic Replicator to replicate Hvy. Mass Driver 39150 | -1/Access | Build established: Botlord-Gunner 39209 | -1/Access | P-80 Master assimilated allied Plague 10c 40244 | -1/Access | System corruption reached 30% 40287 | -1/Access | Lost 3 parts (1p2u) 40856 | -1/Access | Activated Chronowheel 40856 | -1/Access | Spacetime reconverged on an earlier point 40859 | *** | Escaped! Last Messages --------------- 40772_ /BZM TFO=2KKJA